Workbook

Sheet Instructions
A1: Instructions
A2: This document illustrates the Overall Score calculation used in the Infinite Recharge at Home Skills Challenge
A3: The Main sheet shows a display of teams in the hypothetical group, raw scores for each challenge, the calculated score for each challenge, and an overall score/leaderboard
A4: Individual Challenge sheets pull team and score data from the Main sheet and show details about the Calculated Score calculation for that challenge
A5: For an online version of these calculations, visit frcathome.org
A7: The Main sheet also contains a button to generate random data and cells to control how many teams participate in each challenge when the data is randomized
A8: In addition to randomly generated data, users can provide their own data or modify the randomly generated dataset after it is created
A9: The random data is implemented using Macros so you can seamlessly switch between user entered data and randomized data without needing to restore any formulas
A10: If entering user provided challenge data, the Team number and Raw Score columns on the "Main" sheet are the only columns that should be modified
A12: Randomizing Data
A13: Randomizing data using the button requires macros to be enabled
A14: Randomizing data overwrites all data in "Raw Score" columns, including user entered data. Proceed with caution!!
A15: 1. Configure the number of teams in the group by adding or removing team numbers in the team number column of the Main sheet, up to a maximum of 35 teams.
A16: Don’t worry about clearing out data for any teams you remove, the randomization will handle that automatically
A17: Team numbers should be continuous in the column (i.e. don't leave a gap). They do not have to be in numerical order
A18: 2. Configure the number of teams to participate in each challenge in the yellow cells of the Main sheet. The teams that participate in each challenge are randomly selected independent of other challenges
A19: 3. Press "Randomize" to generate random data
A20: The generated data uses vaguely realistic data ranges for each challenge but has made no effort to estimate a realistic distribution of data within that range
A21: You can modify the data in the Raw Score columns by hand if desired. All calculated columns will update using the modified data.
A22: Raw Score data will only be overwritten if the Randomize button is pressed again
A24: Entering Data Manually
A25: 1. Configure the number of teams in the group by adding or removing team numbers in the team number column of the Main sheet, up to a maximum of 35 teams.
A26: Team numbers should be continuous in the column (i.e. don't leave a gap). They do not have to be in numerical order
A27: 2. Clear out Raw score data for any removed teams
A28: 3. Manually enter data into the Raw Score columns
A29: If you are trying to enter data from your group, you can use a copy+paste to an empty scratch sheet to avoid having to manually type out all of the data
A30: To do this, copy the full table from the FRC events page and paste it onto an empty sheet. Then copy the correct columns into the team and Raw Score columns on the Main sheet
A32: Document protection
A33: The sheets on this document have been protected to allow entry into the cells expected to be manipulated by users and protect the cells that contain formulas or other calculated results
A34: This protection is solely to try to prevent accidental modification from breaking the workbook, there is no password set for the protection, so selecting "Unprotect Sheet" from the Review Tab is all that is required to disable it

Sheet Main
D3: Randomizing data overwrites all data in "Raw Score" columns, including user entered data. Proceed with caution!!
D5: A team's top 3 scores (those that contribute to their Overall Score) are indicated using bold text
C7: <- Challenge team count | E7: <- Challenge team count | G7: <- Challenge team count | I7: <- Challenge team count | K7: <- Challenge team count
B8: 10 | D8: 18 | F8: 30 | H8: 27 | J8: 27
B9: Galactic Search | D9: AutoNav | F9: Hyperdrive | H9: Interstellar Accuracy | J9: POWERPORT | Q9: Overall Info | Z9: Leaderboard
A10: Team | B10: Raw Score | C10: Computed Score | D10: Raw Score | E10: Computed Score | F10: Raw Score | G10: Computed Score | H10: Raw Score | I10: Computed Score | J10: Raw Score | K10: Computed Score | L10: C1 | M10: C2 | N10: C3 | O10: C4 | P10: C5 | Q10: Challenges completed | R10: Overall Score | S10: TieBreak1 | T10: TieBreak2 | U10: TieBreak3 | V10: TieBreak4 | W10: TieBreak5 | X10: Overall score with Tiebreakers | Z10: Rank | AA10: Team | AB10: Overall Score | AC10: Score with Tiebreaks | AD10: Tiebreaker 1 | AE10: Tiebreaker 2 | AF10: Tiebreaker 3 | AG10: Tiebreaker 4
A11: 1 | B11: 45.79999924 | C11: =VLOOKUP(A11,GalacticSearch!B$14:'GalacticSearch'!E$48,4, FALSE) -> 106.95 | D11: 126.0999985 | E11: =VLOOKUP(A11,AutoNav!B$14:'AutoNav'!E$48,4, FALSE) -> 66.25 | F11: 146.1000061 | G11: =VLOOKUP(A11,Hyperdrive!B$14:'Hyperdrive'!E$48,4, FALSE) -> 86.03 | H11: 34 | I11: =VLOOKUP(A11,InterstellarAccuracy!B$14:'InterstellarAccuracy'!E$48,4, FALSE) -> 120.27 | J11: 50 | K11: =VLOOKUP(A11,POWERPORT!B$14:'POWERPORT'!E$48,4, FALSE) -> 131.63 | L11: =C11 -> 106.95 | M11: =E11 -> 66.25 | N11: =G11 -> 86.03 | O11: =I11 -> 120.27 | P11: =K11 -> 131.63 | Q11: =COUNTIF(L11:P11,">1") -> 5 | R11: =LARGE(L11:P11,1)+LARGE(L11:P11,2)+LARGE(L11:P11,3) -> 358.85 | S11: =LARGE(L11:P11,1) -> 131.63 | T11: =LARGE(L11:P11,2) -> 120.27 | U11: =LARGE(L11:P11,4) -> 86.03 | V11: =LARGE(L11:P11,5) -> 66.25 | W11: =IF(ISBLANK(A11), 0, RANDBETWEEN(1,99)) -> 25 | X11: =R11+RANK(S11,$S$11:$S$45,1)*0.0001+RANK(T11,$T$11:$T$45,1)*0.000001+RANK(U11,$U$11:$U$45,1)*0.00000001+RANK(V11,$V$11:$V$45,1)*0.0000000001+W11*0.000000000001 -> 358.8523313 | Z11: 1 | AA11: =INDEX($A$11:$A$45,MATCH(AC11,$X$11:$X$45,0)) -> 7 | AB11: =INDEX($R$11:$R$45,MATCH(AC11,$X$11:$X$45,0)) -> 415.63 | AC11: =LARGE($X$11:$X$45,ROW()-ROW($AC$10)) -> 415.6330333 | AD11: =IFERROR(INDEX(S$11:S$45,MATCH($AA11,$A$11:$A$45,0)),0) -> 147.96 | AE11: =IFERROR(INDEX(T$11:T$45,MATCH($AA11,$A$11:$A$45,0)),0) -> 136.59 | AF11: =IFERROR(INDEX(U$11:U$45,MATCH($AA11,$A$11:$A$45,0)),0) -> 70.07 | AG11: =IFERROR(INDEX(V$11:V$45,MATCH($AA11,$A$11:$A$45,0)),0) -> 0
A12: 2 | B12: 38.70000076 | C12: =VLOOKUP(A12,GalacticSearch!B$14:'GalacticSearch'!E$48,4, FALSE) -> 117.35 | D12: 65.5 | E12: =VLOOKUP(A12,AutoNav!B$14:'AutoNav'!E$48,4, FALSE) -> 120.07 | F12: 83.69999695 | G12: =VLOOKUP(A12,Hyperdrive!B$14:'Hyperdrive'!E$48,4, FALSE) -> 129.61 | H12: 32 | I12: =VLOOKUP(A12,InterstellarAccuracy!B$14:'InterstellarAccuracy'!E$48,4, FALSE) -> 114.86 | J12: 18 | K12: =VLOOKUP(A12,POWERPORT!B$14:'POWERPORT'!E$48,4, FALSE) -> 66.33 | L12: 117.35 | M12: 120.07 | N12: 129.61 | O12: 114.86 | P12: 66.33 | Q12: 5 | R12: 367.03 | S12: =LARGE(L12:P12,1) -> 129.61 | T12: =LARGE(L12:P12,2) -> 120.07 | U12: =LARGE(L12:P12,4) -> 114.86 | V12: =LARGE(L12:P12,5) -> 66.33 | W12: =IF(ISBLANK(A12), 0, RANDBETWEEN(1,99)) -> 58 | X12: =R12+RANK(S12,$S$11:$S$45,1)*0.0001+RANK(T12,$T$11:$T$45,1)*0.000001+RANK(U12,$U$11:$U$45,1)*0.00000001+RANK(V12,$V$11:$V$45,1)*0.0000000001+W12*0.000000000001 -> 367.0321304 | Z12: 2 | AA12: =INDEX($A$11:$A$45,MATCH(AC12,$X$11:$X$45,0)) -> 24 | AB12: =INDEX($R$11:$R$45,MATCH(AC12,$X$11:$X$45,0)) -> 402.76 | AC12: 402.7631353 | AD12: =IFERROR(INDEX(S$11:S$45,MATCH($AA12,$A$11:$A$45,0)),0) -> 150 | AE12: =IFERROR(INDEX(T$11:T$45,MATCH($AA12,$A$11:$A$45,0)),0) -> 145.92 | AF12: =IFERROR(INDEX(U$11:U$45,MATCH($AA12,$A$11:$A$45,0)),0) -> 78.07 | AG12: =IFERROR(INDEX(V$11:V$45,MATCH($AA12,$A$11:$A$45,0)),0) -> 0
A13: 3 | B13: 29 | C13: =VLOOKUP(A13,GalacticSearch!B$14:'GalacticSearch'!E$48,4, FALSE) -> 131.55 | D13: 0 | E13: =VLOOKUP(A13,AutoNav!B$14:'AutoNav'!E$48,4, FALSE) -> 0 | F13: 197.6999969 | G13: =VLOOKUP(A13,Hyperdrive!B$14:'Hyperdrive'!E$48,4, FALSE) -> 50 | H13: 32 | I13: =VLOOKUP(A13,InterstellarAccuracy!B$14:'InterstellarAccuracy'!E$48,4, FALSE) -> 114.86 | J13: 13 | K13: =VLOOKUP(A13,POWERPORT!B$14:'POWERPORT'!E$48,4, FALSE) -> 56.12 | L13: 131.55 | M13: 0 | N13: 50 | O13: 114.86 | P13: 56.12 | Q13: 4 | R13: 302.53 | S13: 131.55 | T13: 114.86 | U13: 50 | V13: 0 | W13: 20 | X13: 302.5322272 | Z13: 3 | AA13: 5 | AB13: 376.87 | AC13: 376.8729323 | AD13: 145.2 | AE13: 126.33 | AF13: 98.65 | AG13: 90.82
A14: 4 | B14: 0 | C14: =VLOOKUP(A14,GalacticSearch!B$14:'GalacticSearch'!E$48,4, FALSE) -> 0 | D14: 0 | E14: =VLOOKUP(A14,AutoNav!B$14:'AutoNav'!E$48,4, FALSE) -> 0 | F14: 54.5 | G14: =VLOOKUP(A14,Hyperdrive!B$14:'Hyperdrive'!E$48,4, FALSE) -> 150 | H14: 19 | I14: =VLOOKUP(A14,InterstellarAccuracy!B$14:'InterstellarAccuracy'!E$48,4, FALSE) -> 79.73 | J14: 56 | K14: =VLOOKUP(A14,POWERPORT!B$14:'POWERPORT'!E$48,4, FALSE) -> 143.88 | L14: 0 | M14: 0 | N14: 150 | O14: 79.73 | P14: 143.88 | Q14: 3 | R14: 373.61 | S14: 150 | T14: 143.88 | U14: 0 | V14: 0 | W14: 84 | X14: 373.613134 | Z14: 4 | AA14: 4 | AB14: 373.61 | AC14: 373.613134 | AD14: 150 | AE14: 143.88 | AF14: 0 | AG14: 0
A15: 5 | B15: 46.90000153 | C15: =VLOOKUP(A15,GalacticSearch!B$14:'GalacticSearch'!E$48,4, FALSE) -> 105.34 | D15: 37.20000076 | E15: =VLOOKUP(A15,AutoNav!B$14:'AutoNav'!E$48,4, FALSE) -> 145.2 | F15: 88.40000153 | G15: =VLOOKUP(A15,Hyperdrive!B$14:'Hyperdrive'!E$48,4, FALSE) -> 126.33 | H15: 26 | I15: =VLOOKUP(A15,InterstellarAccuracy!B$14:'InterstellarAccuracy'!E$48,4, FALSE) -> 98.65 | J15: 30 | K15: =VLOOKUP(A15,POWERPORT!B$14:'POWERPORT'!E$48,4, FALSE) -> 90.82 | L15: 105.34 | M15: 145.2 | N15: 126.33 | O15: 98.65 | P15: 90.82 | Q15: 5 | R15: 376.87 | S15: 145.2 | T15: 126.33 | U15: 98.65 | V15: 90.82 | W15: 30 | X15: 376.8729323 | Z15: 5 | AA15: 2 | AB15: 367.03 | AC15: 367.0321304 | AD15: 129.61 | AE15: 120.07 | AF15: 114.86 | AG15: 66.33
A16: 6 | B16: 0 | C16: =VLOOKUP(A16,GalacticSearch!B$14:'GalacticSearch'!E$48,4, FALSE) -> 0 | D16: 0 | E16: =VLOOKUP(A16,AutoNav!B$14:'AutoNav'!E$48,4, FALSE) -> 0 | F16: 165.6999969 | G16: =VLOOKUP(A16,Hyperdrive!B$14:'Hyperdrive'!E$48,4, FALSE) -> 72.35 | H16: 41 | I16: =VLOOKUP(A16,InterstellarAccuracy!B$14:'InterstellarAccuracy'!E$48,4, FALSE) -> 139.19 | J16: 0 | K16: =VLOOKUP(A16,POWERPORT!B$14:'POWERPORT'!E$48,4, FALSE) -> 0 | L16: 0 | M16: 0 | N16: 72.35 | O16: 139.19 | P16: 0 | Q16: 2 | R16: 211.54 | S16: 139.19 | T16: 72.35 | U16: 0 | V16: 0 | W16: 73 | X16: 211.542708 | Z16: 6 | AA16: 18 | AB16: 360.6 | AC16: 360.6025293 | AD16: 135.89 | AE16: 117.57 | AF16: 96 | AG16: 0
A17: 7 | B17: 0 | C17: =VLOOKUP(A17,GalacticSearch!B$14:'GalacticSearch'!E$48,4, FALSE) -> 0 | D17: 121.8000031 | E17: =VLOOKUP(A17,AutoNav!B$14:'AutoNav'!E$48,4, FALSE) -> 70.07 | F17: 73.69999695 | G17: =VLOOKUP(A17,Hyperdrive!B$14:'Hyperdrive'!E$48,4, FALSE) -> 136.59 | H17: 38 | I17: =VLOOKUP(A17,InterstellarAccuracy!B$14:'InterstellarAccuracy'!E$48,4, FALSE) -> 131.08 | J17: 58 | K17: =VLOOKUP(A17,POWERPORT!B$14:'POWERPORT'!E$48,4, FALSE) -> 147.96 | L17: 0 | M17: 70.07 | N17: 136.59 | O17: 131.08 | P17: 147.96 | Q17: 4 | R17: 415.63 | S17: 147.96 | T17: 136.59 | U17: 70.07 | V17: 0 | W17: 11 | X17: 415.6330333 | Z17: 7 | AA17: 1 | AB17: 358.85 | AC17: 358.8523313 | AD17: 131.63 | AE17: 120.27 | AF17: 86.03 | AG17: 66.25
A18: 8 | B18: 0 | C18: =VLOOKUP(A18,GalacticSearch!B$14:'GalacticSearch'!E$48,4, FALSE) -> 0 | D18: 0 | E18: =VLOOKUP(A18,AutoNav!B$14:'AutoNav'!E$48,4, FALSE) -> 0 | F18: 156.5 | G18: =VLOOKUP(A18,Hyperdrive!B$14:'Hyperdrive'!E$48,4, FALSE) -> 78.77 | H18: 23 | I18: =VLOOKUP(A18,InterstellarAccuracy!B$14:'InterstellarAccuracy'!E$48,4, FALSE) -> 90.54 | J18: 13 | K18: =VLOOKUP(A18,POWERPORT!B$14:'POWERPORT'!E$48,4, FALSE) -> 56.12 | L18: 0 | M18: 0 | N18: 78.77 | O18: 90.54 | P18: 56.12 | Q18: 3 | R18: 225.43 | S18: 90.54 | T18: 78.77 | U18: 0 | V18: 0 | W18: 15 | X18: 225.430712 | Z18: 8 | AA18: 20 | AB18: 353.15 | AC18: 353.1531283 | AD18: 150 | AE18: 115.31 | AF18: 72.42 | AG18: 0
A19: 9 | B19: 16.39999962 | C19: =VLOOKUP(A19,GalacticSearch!B$14:'GalacticSearch'!E$48,4, FALSE) -> 150 | D19: 79.90000153 | E19: =VLOOKUP(A19,AutoNav!B$14:'AutoNav'!E$48,4, FALSE) -> 107.28 | F19: 141.3999939 | G19: =VLOOKUP(A19,Hyperdrive!B$14:'Hyperdrive'!E$48,4, FALSE) -> 89.32 | H19: 0 | I19: =VLOOKUP(A19,InterstellarAccuracy!B$14:'InterstellarAccuracy'!E$48,4, FALSE) -> 0 | J19: 22 | K19: =VLOOKUP(A19,POWERPORT!B$14:'POWERPORT'!E$48,4, FALSE) -> 74.49 | L19: 150 | M19: 107.28 | N19: 89.32 | O19: 0 | P19: 74.49 | Q19: 4 | R19: 346.6 | S19: 150 | T19: 107.28 | U19: 74.49 | V19: 0 | W19: 4 | X19: 346.6031263 | Z19: 9 | AA19: 9 | AB19: 346.6 | AC19: 346.6031263 | AD19: 150 | AE19: 107.28 | AF19: 74.49 | AG19: 0
A20: 10 | B20: 0 | C20: =VLOOKUP(A20,GalacticSearch!B$14:'GalacticSearch'!E$48,4, FALSE) -> 0 | D20: 140 | E20: =VLOOKUP(A20,AutoNav!B$14:'AutoNav'!E$48,4, FALSE) -> 53.91 | F20: 63.29999924 | G20: =VLOOKUP(A20,Hyperdrive!B$14:'Hyperdrive'!E$48,4, FALSE) -> 143.85 | H20: 27 | I20: =VLOOKUP(A20,InterstellarAccuracy!B$14:'InterstellarAccuracy'!E$48,4, FALSE) -> 101.35 | J20: 10 | K20: =VLOOKUP(A20,POWERPORT!B$14:'POWERPORT'!E$48,4, FALSE) -> 50 | L20: 0 | M20: 53.91 | N20: 143.85 | O20: 101.35 | P20: 50 | Q20: 4 | R20: 299.11 | S20: 143.85 | T20: 101.35 | U20: 50 | V20: 0 | W20: 77 | X20: 299.1128222 | Z20: 10 | AA20: 22 | AB20: 332.89 | AC20: 332.8917232 | AD20: 128.38 | AE20: 103.11 | AF20: 62.24 | AG20: 0
A21: 11 | B21: 0 | C21: =VLOOKUP(A21,GalacticSearch!B$14:'GalacticSearch'!E$48,4, FALSE) -> 0 | D21: 0 | E21: =VLOOKUP(A21,AutoNav!B$14:'AutoNav'!E$48,4, FALSE) -> 0 | F21: 131.3000031 | G21: =VLOOKUP(A21,Hyperdrive!B$14:'Hyperdrive'!E$48,4, FALSE) -> 96.37 | H21: 28 | I21: =VLOOKUP(A21,InterstellarAccuracy!B$14:'InterstellarAccuracy'!E$48,4, FALSE) -> 104.05 | J21: 37 | K21: =VLOOKUP(A21,POWERPORT!B$14:'POWERPORT'!E$48,4, FALSE) -> 105.1 | L21: 0 | M21: 0 | N21: 96.37 | O21: 104.05 | P21: 105.1 | Q21: 3 | R21: 305.52 | S21: 105.1 | T21: 104.05 | U21: 0 | V21: 0 | W21: 52 | X21: 305.521024 | Z21: 11 | AA21: 16 | AB21: 316.91 | AC21: 316.9131132 | AD21: 150 | AE21: 83.67 | AF21: 52.7 | AG21: 0
A22: 12 | B22: 86.80000305 | C22: =VLOOKUP(A22,GalacticSearch!B$14:'GalacticSearch'!E$48,4, FALSE) -> 50 | D22: 99.30000305 | E22: =VLOOKUP(A22,AutoNav!B$14:'AutoNav'!E$48,4, FALSE) -> 90.05 | F22: 161.6000061 | G22: =VLOOKUP(A22,Hyperdrive!B$14:'Hyperdrive'!E$48,4, FALSE) -> 75.21 | H22: 11 | I22: =VLOOKUP(A22,InterstellarAccuracy!B$14:'InterstellarAccuracy'!E$48,4, FALSE) -> 58.11 | J22: 22 | K22: =VLOOKUP(A22,POWERPORT!B$14:'POWERPORT'!E$48,4, FALSE) -> 74.49 | L22: 50 | M22: 90.05 | N22: 75.21 | O22: 58.11 | P22: 74.49 | Q22: 5 | R22: 239.75 | S22: 90.05 | T22: 75.21 | U22: 58.11 | V22: 50 | W22: 55 | X22: 239.7506092 | Z22: 12 | AA22: 28 | AB22: 310.02 | AC22: 310.021825 | AD22: 128.56 | AE22: 107.14 | AF22: 0 | AG22: 0
A23: 13 | B23: 0 | C23: =VLOOKUP(A23,GalacticSearch!B$14:'GalacticSearch'!E$48,4, FALSE) -> 0 | D23: 118.5999985 | E23: =VLOOKUP(A23,AutoNav!B$14:'AutoNav'!E$48,4, FALSE) -> 72.91 | F23: 74.19999695 | G23: =VLOOKUP(A23,Hyperdrive!B$14:'Hyperdrive'!E$48,4, FALSE) -> 136.24 | H23: 9 | I23: =VLOOKUP(A23,InterstellarAccuracy!B$14:'InterstellarAccuracy'!E$48,4, FALSE) -> 52.7 | J23: 28 | K23: =VLOOKUP(A23,POWERPORT!B$14:'POWERPORT'!E$48,4, FALSE) -> 86.73 | L23: 0 | M23: 72.91 | N23: 136.24 | O23: 52.7 | P23: 86.73 | Q23: 4 | R23: 295.88 | S23: 136.24 | T23: 86.73 | U23: 52.7 | V23: 0 | W23: 34 | X23: 295.8826152 | Z23: 13 | AA23: 23 | AB23: 305.6 | AC23: 305.6015193 | AD23: 123.04 | AE23: 92.86 | AF23: 87.84 | AG23: 0
A24: 14 | B24: 0 | C24: =VLOOKUP(A24,GalacticSearch!B$14:'GalacticSearch'!E$48,4, FALSE) -> 0 | D24: 0 | E24: =VLOOKUP(A24,AutoNav!B$14:'AutoNav'!E$48,4, FALSE) -> 0 | F24: 138.3000031 | G24: =VLOOKUP(A24,Hyperdrive!B$14:'Hyperdrive'!E$48,4, FALSE) -> 91.48 | H24: 9 | I24: =VLOOKUP(A24,InterstellarAccuracy!B$14:'InterstellarAccuracy'!E$48,4, FALSE) -> 52.7 | J24: 47 | K24: =VLOOKUP(A24,POWERPORT!B$14:'POWERPORT'!E$48,4, FALSE) -> 125.51 | L24: 0 | M24: 0 | N24: 91.48 | O24: 52.7 | P24: 125.51 | Q24: 3 | R24: 269.69 | S24: 125.51 | T24: 91.48 | U24: 0 | V24: 0 | W24: 54 | X24: 269.691618 | Z24: 14 | AA24: 11 | AB24: 305.52 | AC24: 305.521024 | AD24: 105.1 | AE24: 104.05 | AF24: 0 | AG24: 0
A25: 15 | B25: 0 | C25: =VLOOKUP(A25,GalacticSearch!B$14:'GalacticSearch'!E$48,4, FALSE) -> 0 | D25: 55 | E25: =VLOOKUP(A25,AutoNav!B$14:'AutoNav'!E$48,4, FALSE) -> 129.4 | F25: 196.8000031 | G25: =VLOOKUP(A25,Hyperdrive!B$14:'Hyperdrive'!E$48,4, FALSE) -> 50.63 | H25: 11 | I25: =VLOOKUP(A25,InterstellarAccuracy!B$14:'InterstellarAccuracy'!E$48,4, FALSE) -> 58.11 | J25: 0 | K25: =VLOOKUP(A25,POWERPORT!B$14:'POWERPORT'!E$48,4, FALSE) -> 0 | L25: 0 | M25: 129.4 | N25: 50.63 | O25: 58.11 | P25: 0 | Q25: 3 | R25: 238.14 | S25: 129.4 | T25: 58.11 | U25: 0 | V25: 0 | W25: 78 | X25: 238.141906 | Z25: 15 | AA25: 3 | AB25: 302.53 | AC25: 302.5322272 | AD25: 131.55 | AE25: 114.86 | AF25: 50 | AG25: 0
A26: 16 | B26: 61.70000076 | C26: =VLOOKUP(A26,GalacticSearch!B$14:'GalacticSearch'!E$48,4, FALSE) -> 83.67 | D26: 0 | E26: =VLOOKUP(A26,AutoNav!B$14:'AutoNav'!E$48,4, FALSE) -> 0 | F26: 150.1000061 | G26: =VLOOKUP(A26,Hyperdrive!B$14:'Hyperdrive'!E$48,4, FALSE) -> 83.24 | H26: 9 | I26: =VLOOKUP(A26,InterstellarAccuracy!B$14:'InterstellarAccuracy'!E$48,4, FALSE) -> 52.7 | J26: 59 | K26: =VLOOKUP(A26,POWERPORT!B$14:'POWERPORT'!E$48,4, FALSE) -> 150 | L26: 83.67 | M26: 0 | N26: 83.24 | O26: 52.7 | P26: 150 | Q26: 4 | R26: 316.91 | S26: 150 | T26: 83.67 | U26: 52.7 | V26: 0 | W26: 7 | X26: 316.9131132 | Z26: 16 | AA26: 10 | AB26: 299.11 | AC26: 299.1128222 | AD26: 143.85 | AE26: 101.35 | AF26: 50 | AG26: 0
A27: 17 | B27: 74.40000153 | C27: =VLOOKUP(A27,GalacticSearch!B$14:'GalacticSearch'!E$48,4, FALSE) -> 65.08 | D27: 127.8000031 | E27: =VLOOKUP(A27,AutoNav!B$14:'AutoNav'!E$48,4, FALSE) -> 64.74 | F27: 143.3000031 | G27: =VLOOKUP(A27,Hyperdrive!B$14:'Hyperdrive'!E$48,4, FALSE) -> 87.99 | H27: 8 | I27: =VLOOKUP(A27,InterstellarAccuracy!B$14:'InterstellarAccuracy'!E$48,4, FALSE) -> 50 | J27: 37 | K27: =VLOOKUP(A27,POWERPORT!B$14:'POWERPORT'!E$48,4, FALSE) -> 105.1 | L27: 65.08 | M27: 64.74 | N27: 87.99 | O27: 50 | P27: 105.1 | Q27: 5 | R27: 258.17 | S27: 105.1 | T27: 87.99 | U27: 64.74 | V27: 50 | W27: 22 | X27: 258.1710163 | Z27: 17 | AA27: 13 | AB27: 295.88 | AC27: 295.8826152 | AD27: 136.24 | AE27: 86.73 | AF27: 52.7 | AG27: 0
A28: 18 | B28: 0 | C28: =VLOOKUP(A28,GalacticSearch!B$14:'GalacticSearch'!E$48,4, FALSE) -> 0 | D28: 92.59999847 | E28: =VLOOKUP(A28,AutoNav!B$14:'AutoNav'!E$48,4, FALSE) -> 96 | F28: 74.69999695 | G28: =VLOOKUP(A28,Hyperdrive!B$14:'Hyperdrive'!E$48,4, FALSE) -> 135.89 | H28: 33 | I28: =VLOOKUP(A28,InterstellarAccuracy!B$14:'InterstellarAccuracy'!E$48,4, FALSE) -> 117.57 | J28: 38 | K28: =VLOOKUP(A28,POWERPORT!B$14:'POWERPORT'!E$48,4, FALSE) -> 107.14 | L28: 0 | M28: 96 | N28: 135.89 | O28: 117.57 | P28: 107.14 | Q28: 4 | R28: 360.6 | S28: 135.89 | T28: 117.57 | U28: 96 | V28: 0 | W28: 53 | X28: 360.6025293 | Z28: 18 | AA28: 19 | AB28: 293.53 | AC28: 293.53202 | AD28: 129.59 | AE28: 98.65 | AF28: 0 | AG28: 0
A29: 19 | B29: 0 | C29: =VLOOKUP(A29,GalacticSearch!B$14:'GalacticSearch'!E$48,4, FALSE) -> 0 | D29: 0 | E29: =VLOOKUP(A29,AutoNav!B$14:'AutoNav'!E$48,4, FALSE) -> 0 | F29: 175.8000031 | G29: =VLOOKUP(A29,Hyperdrive!B$14:'Hyperdrive'!E$48,4, FALSE) -> 65.29 | H29: 26 | I29: =VLOOKUP(A29,InterstellarAccuracy!B$14:'InterstellarAccuracy'!E$48,4, FALSE) -> 98.65 | J29: 49 | K29: =VLOOKUP(A29,POWERPORT!B$14:'POWERPORT'!E$48,4, FALSE) -> 129.59 | L29: 0 | M29: 0 | N29: 65.29 | O29: 98.65 | P29: 129.59 | Q29: 3 | R29: 293.53 | S29: 129.59 | T29: 98.65 | U29: 0 | V29: 0 | W29: 48 | X29: 293.53202 | Z29: 19 | AA29: 27 | AB29: 283.42 | AC29: 283.422421 | AD29: 132.4 | AE29: 101.02 | AF29: 0 | AG29: 0
A30: 20 | B30: 0 | C30: =VLOOKUP(A30,GalacticSearch!B$14:'GalacticSearch'!E$48,4, FALSE) -> 0 | D30: 31.79999924 | E30: =VLOOKUP(A30,AutoNav!B$14:'AutoNav'!E$48,4, FALSE) -> 150 | F30: 165.6000061 | G30: =VLOOKUP(A30,Hyperdrive!B$14:'Hyperdrive'!E$48,4, FALSE) -> 72.42 | H30: 22 | I30: =VLOOKUP(A30,InterstellarAccuracy!B$14:'InterstellarAccuracy'!E$48,4, FALSE) -> 87.84 | J30: 42 | K30: =VLOOKUP(A30,POWERPORT!B$14:'POWERPORT'!E$48,4, FALSE) -> 115.31 | L30: 0 | M30: 150 | N30: 72.42 | O30: 87.84 | P30: 115.31 | Q30: 4 | R30: 353.15 | S30: 150 | T30: 115.31 | U30: 72.42 | V30: 0 | W30: 37 | X30: 353.1531283 | Z30: 20 | AA30: 26 | AB30: 278.73 | AC30: 278.731417 | AD30: 121.86 | AE30: 90.54 | AF30: 0 | AG30: 0
A31: 21 | B31: 52.90000153 | C31: =VLOOKUP(A31,GalacticSearch!B$14:'GalacticSearch'!E$48,4, FALSE) -> 96.56 | D31: 125.8000031 | E31: =VLOOKUP(A31,AutoNav!B$14:'AutoNav'!E$48,4, FALSE) -> 66.52 | F31: 159 | G31: =VLOOKUP(A31,Hyperdrive!B$14:'Hyperdrive'!E$48,4, FALSE) -> 77.03 | H31: 0 | I31: =VLOOKUP(A31,InterstellarAccuracy!B$14:'InterstellarAccuracy'!E$48,4, FALSE) -> 0 | J31: 0 | K31: =VLOOKUP(A31,POWERPORT!B$14:'POWERPORT'!E$48,4, FALSE) -> 0 | L31: 96.56 | M31: 66.52 | N31: 77.03 | O31: 0 | P31: 0 | Q31: 3 | R31: 240.11 | S31: 96.56 | T31: 77.03 | U31: 0 | V31: 0 | W31: 96 | X31: 240.11081 | Z31: 21 | AA31: 30 | AB31: 270.26 | AC31: 270.2612142 | AD31: 109.46 | AE31: 86.31 | AF31: 55.17 | AG31: 0
A32: 22 | B32: 0 | C32: =VLOOKUP(A32,GalacticSearch!B$14:'GalacticSearch'!E$48,4, FALSE) -> 0 | D32: 84.59999847 | E32: =VLOOKUP(A32,AutoNav!B$14:'AutoNav'!E$48,4, FALSE) -> 103.11 | F32: 124.0999985 | G32: =VLOOKUP(A32,Hyperdrive!B$14:'Hyperdrive'!E$48,4, FALSE) -> 101.4 | H32: 37 | I32: =VLOOKUP(A32,InterstellarAccuracy!B$14:'InterstellarAccuracy'!E$48,4, FALSE) -> 128.38 | J32: 16 | K32: =VLOOKUP(A32,POWERPORT!B$14:'POWERPORT'!E$48,4, FALSE) -> 62.24 | L32: 0 | M32: 103.11 | N32: 101.4 | O32: 128.38 | P32: 62.24 | Q32: 4 | R32: 332.89 | S32: 128.38 | T32: 103.11 | U32: 62.24 | V32: 0 | W32: 7 | X32: 332.8917232 | Z32: 22 | AA32: 14 | AB32: 269.69 | AC32: 269.691618 | AD32: 125.51 | AE32: 91.48 | AF32: 0 | AG32: 0
A33: 23 | B33: 0 | C33: =VLOOKUP(A33,GalacticSearch!B$14:'GalacticSearch'!E$48,4, FALSE) -> 0 | D33: 99.69999695 | E33: =VLOOKUP(A33,AutoNav!B$14:'AutoNav'!E$48,4, FALSE) -> 89.7 | F33: 93.09999847 | G33: =VLOOKUP(A33,Hyperdrive!B$14:'Hyperdrive'!E$48,4, FALSE) -> 123.04 | H33: 22 | I33: =VLOOKUP(A33,InterstellarAccuracy!B$14:'InterstellarAccuracy'!E$48,4, FALSE) -> 87.84 | J33: 31 | K33: =VLOOKUP(A33,POWERPORT!B$14:'POWERPORT'!E$48,4, FALSE) -> 92.86 | L33: 0 | M33: 89.7 | N33: 123.04 | O33: 87.84 | P33: 92.86 | Q33: 4 | R33: 305.6 | S33: 123.04 | T33: 92.86 | U33: 87.84 | V33: 0 | W33: 99 | X33: 305.6015193 | Z33: 23 | AA33: 17 | AB33: 258.17 | AC33: 258.1710163 | AD33: 105.1 | AE33: 87.99 | AF33: 64.74 | AG33: 50
A34: 24 | B34: 0 | C34: =VLOOKUP(A34,GalacticSearch!B$14:'GalacticSearch'!E$48,4, FALSE) -> 0 | D34: 80.40000153 | E34: =VLOOKUP(A34,AutoNav!B$14:'AutoNav'!E$48,4, FALSE) -> 106.84 | F34: 157.5 | G34: =VLOOKUP(A34,Hyperdrive!B$14:'Hyperdrive'!E$48,4, FALSE) -> 78.07 | H34: 45 | I34: =VLOOKUP(A34,InterstellarAccuracy!B$14:'InterstellarAccuracy'!E$48,4, FALSE) -> 150 | J34: 57 | K34: =VLOOKUP(A34,POWERPORT!B$14:'POWERPORT'!E$48,4, FALSE) -> 145.92 | L34: 0 | M34: 106.84 | N34: 78.07 | O34: 150 | P34: 145.92 | Q34: 4 | R34: 402.76 | S34: 150 | T34: 145.92 | U34: 78.07 | V34: 0 | W34: 30 | X34: 402.7631353 | Z34: 24 | AA34: 29 | AB34: 252.21 | AC34: 252.2113073 | AD34: 114.48 | AE34: 70.41 | AF34: 63.51 | AG34: 0
A35: 25 | B35: 0 | C35: =VLOOKUP(A35,GalacticSearch!B$14:'GalacticSearch'!E$48,4, FALSE) -> 0 | D35: 0 | E35: =VLOOKUP(A35,AutoNav!B$14:'AutoNav'!E$48,4, FALSE) -> 0 | F35: 157.1000061 | G35: =VLOOKUP(A35,Hyperdrive!B$14:'Hyperdrive'!E$48,4, FALSE) -> 78.35 | H35: 27 | I35: =VLOOKUP(A35,InterstellarAccuracy!B$14:'InterstellarAccuracy'!E$48,4, FALSE) -> 101.35 | J35: 13 | K35: =VLOOKUP(A35,POWERPORT!B$14:'POWERPORT'!E$48,4, FALSE) -> 56.12 | L35: 0 | M35: 0 | N35: 78.35 | O35: 101.35 | P35: 56.12 | Q35: 3 | R35: 235.82 | S35: 101.35 | T35: 78.35 | U35: 0 | V35: 0 | W35: 73 | X35: 235.820911 | Z35: 25 | AA35: 21 | AB35: 240.11 | AC35: 240.11081 | AD35: 96.56 | AE35: 77.03 | AF35: 0 | AG35: 0
A36: 26 | B36: 0 | C36: =VLOOKUP(A36,GalacticSearch!B$14:'GalacticSearch'!E$48,4, FALSE) -> 0 | D36: 0 | E36: =VLOOKUP(A36,AutoNav!B$14:'AutoNav'!E$48,4, FALSE) -> 0 | F36: 94.80000305 | G36: =VLOOKUP(A36,Hyperdrive!B$14:'Hyperdrive'!E$48,4, FALSE) -> 121.86 | H36: 23 | I36: =VLOOKUP(A36,InterstellarAccuracy!B$14:'InterstellarAccuracy'!E$48,4, FALSE) -> 90.54 | J36: 18 | K36: =VLOOKUP(A36,POWERPORT!B$14:'POWERPORT'!E$48,4, FALSE) -> 66.33 | L36: 0 | M36: 0 | N36: 121.86 | O36: 90.54 | P36: 66.33 | Q36: 3 | R36: 278.73 | S36: 121.86 | T36: 90.54 | U36: 0 | V36: 0 | W36: 27 | X36: 278.731417 | Z36: 26 | AA36: 12 | AB36: 239.75 | AC36: 239.7506092 | AD36: 90.05 | AE36: 75.21 | AF36: 58.11 | AG36: 50
A37: 27 | B37: 0 | C37: =VLOOKUP(A37,GalacticSearch!B$14:'GalacticSearch'!E$48,4, FALSE) -> 0 | D37: 144.3999939 | E37: =VLOOKUP(A37,AutoNav!B$14:'AutoNav'!E$48,4, FALSE) -> 50 | F37: 79.69999695 | G37: =VLOOKUP(A37,Hyperdrive!B$14:'Hyperdrive'!E$48,4, FALSE) -> 132.4 | H37: 0 | I37: =VLOOKUP(A37,InterstellarAccuracy!B$14:'InterstellarAccuracy'!E$48,4, FALSE) -> 0 | J37: 35 | K37: =VLOOKUP(A37,POWERPORT!B$14:'POWERPORT'!E$48,4, FALSE) -> 101.02 | L37: 0 | M37: 50 | N37: 132.4 | O37: 0 | P37: 101.02 | Q37: 3 | R37: 283.42 | S37: 132.4 | T37: 101.02 | U37: 0 | V37: 0 | W37: 20 | X37: 283.422421 | Z37: 27 | AA37: 15 | AB37: 238.14 | AC37: 238.141906 | AD37: 129.4 | AE37: 58.11 | AF37: 0 | AG37: 0
A38: 28 | B38: 0 | C38: =VLOOKUP(A38,GalacticSearch!B$14:'GalacticSearch'!E$48,4, FALSE) -> 0 | D38: 0 | E38: =VLOOKUP(A38,AutoNav!B$14:'AutoNav'!E$48,4, FALSE) -> 0 | F38: 85.19999695 | G38: =VLOOKUP(A38,Hyperdrive!B$14:'Hyperdrive'!E$48,4, FALSE) -> 128.56 | H38: 17 | I38: =VLOOKUP(A38,InterstellarAccuracy!B$14:'InterstellarAccuracy'!E$48,4, FALSE) -> 74.32 | J38: 38 | K38: =VLOOKUP(A38,POWERPORT!B$14:'POWERPORT'!E$48,4, FALSE) -> 107.14 | L38: 0 | M38: 0 | N38: 128.56 | O38: 74.32 | P38: 107.14 | Q38: 3 | R38: 310.02 | S38: 128.56 | T38: 107.14 | U38: 0 | V38: 0 | W38: 36 | X38: 310.021825 | Z38: 28 | AA38: 25 | AB38: 235.82 | AC38: 235.820911 | AD38: 101.35 | AE38: 78.35 | AF38: 0 | AG38: 0
A39: 29 | B39: 0 | C39: =VLOOKUP(A39,GalacticSearch!B$14:'GalacticSearch'!E$48,4, FALSE) -> 0 | D39: 71.80000305 | E39: =VLOOKUP(A39,AutoNav!B$14:'AutoNav'!E$48,4, FALSE) -> 114.48 | F39: 172.8999939 | G39: =VLOOKUP(A39,Hyperdrive!B$14:'Hyperdrive'!E$48,4, FALSE) -> 67.32 | H39: 13 | I39: =VLOOKUP(A39,InterstellarAccuracy!B$14:'InterstellarAccuracy'!E$48,4, FALSE) -> 63.51 | J39: 20 | K39: =VLOOKUP(A39,POWERPORT!B$14:'POWERPORT'!E$48,4, FALSE) -> 70.41 | L39: 0 | M39: 114.48 | N39: 67.32 | O39: 63.51 | P39: 70.41 | Q39: 4 | R39: 252.21 | S39: 114.48 | T39: 70.41 | U39: 63.51 | V39: 0 | W39: 64 | X39: 252.2113073 | Z39: 29 | AA39: 8 | AB39: 225.43 | AC39: 225.430712 | AD39: 90.54 | AE39: 78.77 | AF39: 0 | AG39: 0
A40: 30 | B40: 59.90000153 | C40: =VLOOKUP(A40,GalacticSearch!B$14:'GalacticSearch'!E$48,4, FALSE) -> 86.31 | D40: 0 | E40: =VLOOKUP(A40,AutoNav!B$14:'AutoNav'!E$48,4, FALSE) -> 0 | F40: 190.3000031 | G40: =VLOOKUP(A40,Hyperdrive!B$14:'Hyperdrive'!E$48,4, FALSE) -> 55.17 | H40: 30 | I40: =VLOOKUP(A40,InterstellarAccuracy!B$14:'InterstellarAccuracy'!E$48,4, FALSE) -> 109.46 | J40: 22 | K40: =VLOOKUP(A40,POWERPORT!B$14:'POWERPORT'!E$48,4, FALSE) -> 74.49 | L40: 86.31 | M40: 0 | N40: 55.17 | O40: 109.46 | P40: 74.49 | Q40: 4 | R40: 270.26 | S40: 109.46 | T40: 86.31 | U40: 55.17 | V40: 0 | W40: 16 | X40: 270.2612142 | Z40: 30 | AA40: 6 | AB40: 211.54 | AC40: 211.542708 | AD40: 139.19 | AE40: 72.35 | AF40: 0 | AG40: 0
B41: 0 | C41: =VLOOKUP(A41,GalacticSearch!B$14:'GalacticSearch'!E$48,4, FALSE) -> 0 | D41: 0 | E41: =VLOOKUP(A41,AutoNav!B$14:'AutoNav'!E$48,4, FALSE) -> 0 | F41: 0 | G41: =VLOOKUP(A41,Hyperdrive!B$14:'Hyperdrive'!E$48,4, FALSE) -> 0 | H41: 0 | I41: =VLOOKUP(A41,InterstellarAccuracy!B$14:'InterstellarAccuracy'!E$48,4, FALSE) -> 0 | J41: 0 | K41: =VLOOKUP(A41,POWERPORT!B$14:'POWERPORT'!E$48,4, FALSE) -> 0 | L41: 0 | M41: 0 | N41: 0 | O41: 0 | P41: 0 | Q41: 0 | R41: 0 | S41: 0 | T41: 0 | U41: 0 | V41: 0 | W41: 0 | X41: 0.0001010101 | Z41: 31 | AA41: 0 | AB41: 0 | AC41: 0.0001010101 | AD41: 0 | AE41: 0 | AF41: 0 | AG41: 0
B42: 0 | C42: =VLOOKUP(A42,GalacticSearch!B$14:'GalacticSearch'!E$48,4, FALSE) -> 0 | D42: 0 | E42: =VLOOKUP(A42,AutoNav!B$14:'AutoNav'!E$48,4, FALSE) -> 0 | F42: 0 | G42: =VLOOKUP(A42,Hyperdrive!B$14:'Hyperdrive'!E$48,4, FALSE) -> 0 | H42: 0 | I42: =VLOOKUP(A42,InterstellarAccuracy!B$14:'InterstellarAccuracy'!E$48,4, FALSE) -> 0 | J42: 0 | K42: =VLOOKUP(A42,POWERPORT!B$14:'POWERPORT'!E$48,4, FALSE) -> 0 | L42: 0 | M42: 0 | N42: 0 | O42: 0 | P42: 0 | Q42: 0 | R42: 0 | S42: 0 | T42: 0 | U42: 0 | V42: 0 | W42: 0 | X42: 0.0001010101 | Z42: 32 | AA42: 0 | AB42: 0 | AC42: 0.0001010101 | AD42: 0 | AE42: 0 | AF42: 0 | AG42: 0
B43: 0 | C43: =VLOOKUP(A43,GalacticSearch!B$14:'GalacticSearch'!E$48,4, FALSE) -> 0 | D43: 0 | E43: =VLOOKUP(A43,AutoNav!B$14:'AutoNav'!E$48,4, FALSE) -> 0 | F43: 0 | G43: =VLOOKUP(A43,Hyperdrive!B$14:'Hyperdrive'!E$48,4, FALSE) -> 0 | H43: 0 | I43: =VLOOKUP(A43,InterstellarAccuracy!B$14:'InterstellarAccuracy'!E$48,4, FALSE) -> 0 | J43: 0 | K43: =VLOOKUP(A43,POWERPORT!B$14:'POWERPORT'!E$48,4, FALSE) -> 0 | L43: 0 | M43: 0 | N43: 0 | O43: 0 | P43: 0 | Q43: 0 | R43: 0 | S43: 0 | T43: 0 | U43: 0 | V43: 0 | W43: 0 | X43: 0.0001010101 | Z43: 33 | AA43: 0 | AB43: 0 | AC43: 0.0001010101 | AD43: 0 | AE43: 0 | AF43: 0 | AG43: 0
B44: 0 | C44: =VLOOKUP(A44,GalacticSearch!B$14:'GalacticSearch'!E$48,4, FALSE) -> 0 | D44: 0 | E44: =VLOOKUP(A44,AutoNav!B$14:'AutoNav'!E$48,4, FALSE) -> 0 | F44: 0 | G44: =VLOOKUP(A44,Hyperdrive!B$14:'Hyperdrive'!E$48,4, FALSE) -> 0 | H44: 0 | I44: =VLOOKUP(A44,InterstellarAccuracy!B$14:'InterstellarAccuracy'!E$48,4, FALSE) -> 0 | J44: 0 | K44: =VLOOKUP(A44,POWERPORT!B$14:'POWERPORT'!E$48,4, FALSE) -> 0 | L44: 0 | M44: 0 | N44: 0 | O44: 0 | P44: 0 | Q44: 0 | R44: 0 | S44: 0 | T44: 0 | U44: 0 | V44: 0 | W44: 0 | X44: 0.0001010101 | Z44: 34 | AA44: 0 | AB44: 0 | AC44: 0.0001010101 | AD44: 0 | AE44: 0 | AF44: 0 | AG44: 0
B45: 0 | C45: =VLOOKUP(A45,GalacticSearch!B$14:'GalacticSearch'!E$48,4, FALSE) -> 0 | D45: 0 | E45: =VLOOKUP(A45,AutoNav!B$14:'AutoNav'!E$48,4, FALSE) -> 0 | F45: 0 | G45: =VLOOKUP(A45,Hyperdrive!B$14:'Hyperdrive'!E$48,4, FALSE) -> 0 | H45: 0 | I45: =VLOOKUP(A45,InterstellarAccuracy!B$14:'InterstellarAccuracy'!E$48,4, FALSE) -> 0 | J45: 0 | K45: =VLOOKUP(A45,POWERPORT!B$14:'POWERPORT'!E$48,4, FALSE) -> 0 | L45: 0 | M45: 0 | N45: 0 | O45: 0 | P45: 0 | Q45: 0 | R45: 0 | S45: 0 | T45: 0 | U45: 0 | V45: 0 | W45: 0 | X45: 0.0001010101 | Z45: 35 | AA45: 0 | AB45: 0 | AC45: 0.0001010101 | AD45: 0 | AE45: 0 | AF45: 0 | AG45: 0

Sheet GalacticSearch
B2: Reference Information (N is driven by value on Main Sheet) | F2: Outlier Rejection
F3: Q1 | G3: =IF(C4*0.25=INT(C4*0.25),(OFFSET(G13,C4*0.25,0)+OFFSET(G13,C4*0.25+1,0))/2,OFFSET(G13,_xlfn.CEILING.MATH(C4*0.25),0)) -> 38.70000076
B4: N: | C4: =COUNTIF(C14:C48, "<>0") -> 10 | F4: Q3 | G4: =IF(C4*0.75=INT(C4*0.75),(OFFSET(G13,C4*0.75,0)+OFFSET(G13,C4*0.75+1,0))/2,OFFSET(G13,_xlfn.CEILING.MATH(C4*0.75),0)) -> 61.70000076
B5: Score type: | C5: 1 decimal | F5: RLower | G5: =G3-1*(G4-G3) -> 15.70000076 | H5: =Q1-1*(Q3-Q1)
B6: Max or min to win? | C6: Min | F6: RUpper | G6: =G4+1*(G4-G3) -> 84.70000076 | H6: =Q3+1*(Q3-Q1)
B8: Minimum and Maximum score | F8: Bounded Score Information
B9: Max score (CMax) | C9: 150 | F9: BLast | G9: =MAX(OFFSET($D$14,0,0,35)) -> 84.70000076
B10: Min score (CMin) | C10: =MAX(C9-20*(C4-1),50) -> 50 | D10: =Max(Cmax-20*(N-1), 50) | F10: BFirst | G10: =MIN(IF(OFFSET($D$14,0,0,35)=0,"",OFFSET($D$14,0,0,35))) -> 16.39999962
E11: To re-sort after data has been updated, click the arrow next to
B12: Computed Score = ABS((B-Blast)/(Bfirst-Blast)) * (Cmax - Cmin) + Cmin | E12: Computed Score and select "Largest to Smallest"
B13: Team # | C13: Raw Score (R) | D13: Bounded Score (B) | E13: Computed Score (C) | G13: Sorted Raw Scores (for Quartile calcs)
B14: =Main!A11 -> 1 | C14: =Main!B11 -> 45.79999924 | D14: =IF(C14<>0,IF(C14<$G$5,$G$5,IF(C14>$G$6,$G$6,C14)),0) -> 45.79999924 | E14: =IF(D14>0,IF(($G$9-$G$10)<>0,ROUND((D14-$G$9)/($G$10-$G$9)*($C$9-$C$10)+$C$10,2),150),0) -> 106.95 | G14: =IFERROR(SMALL(IF(OFFSET($C$14,0,0,35)=0, "", OFFSET($C$14,0,0,35)),ROW()-ROW($G$13)),"") -> 16.39999962
B15: =Main!A41 -> 0 | C15: =Main!B41 -> 0 | D15: 0 | E15: 0 | G15: =IFERROR(SMALL(IF(OFFSET($C$14,0,0,35)=0, "", OFFSET($C$14,0,0,35)),ROW()-ROW($G$13)),"") -> 29
B16: =Main!A30 -> 20 | C16: =Main!B30 -> 0 | D16: 0 | E16: 0 | G16: =IFERROR(SMALL(IF(OFFSET($C$14,0,0,35)=0, "", OFFSET($C$14,0,0,35)),ROW()-ROW($G$13)),"") -> 38.70000076
B17: =Main!A43 -> 0 | C17: =Main!B43 -> 0 | D17: 0 | E17: 0 | G17: =IFERROR(SMALL(IF(OFFSET($C$14,0,0,35)=0, "", OFFSET($C$14,0,0,35)),ROW()-ROW($G$13)),"") -> 45.79999924
B18: =Main!A12 -> 2 | C18: =Main!B12 -> 38.70000076 | D18: 38.70000076 | E18: 117.35 | G18: =IFERROR(SMALL(IF(OFFSET($C$14,0,0,35)=0, "", OFFSET($C$14,0,0,35)),ROW()-ROW($G$13)),"") -> 46.90000153
B19: =Main!A31 -> 21 | C19: =Main!B31 -> 52.90000153 | D19: 52.90000153 | E19: 96.56 | G19: =IFERROR(SMALL(IF(OFFSET($C$14,0,0,35)=0, "", OFFSET($C$14,0,0,35)),ROW()-ROW($G$13)),"") -> 52.90000153
B20: =Main!A35 -> 25 | C20: =Main!B35 -> 0 | D20: 0 | E20: 0 | G20: =IFERROR(SMALL(IF(OFFSET($C$14,0,0,35)=0, "", OFFSET($C$14,0,0,35)),ROW()-ROW($G$13)),"") -> 59.90000153
B21: =Main!A20 -> 10 | C21: =Main!B20 -> 0 | D21: 0 | E21: 0 | G21: =IFERROR(SMALL(IF(OFFSET($C$14,0,0,35)=0, "", OFFSET($C$14,0,0,35)),ROW()-ROW($G$13)),"") -> 61.70000076
B22: =Main!A28 -> 18 | C22: =Main!B28 -> 0 | D22: 0 | E22: 0 | G22: =IFERROR(SMALL(IF(OFFSET($C$14,0,0,35)=0, "", OFFSET($C$14,0,0,35)),ROW()-ROW($G$13)),"") -> 74.40000153
B23: =Main!A21 -> 11 | C23: =Main!B21 -> 0 | D23: 0 | E23: 0 | G23: =IFERROR(SMALL(IF(OFFSET($C$14,0,0,35)=0, "", OFFSET($C$14,0,0,35)),ROW()-ROW($G$13)),"") -> 86.80000305
B24: =Main!A40 -> 30 | C24: =Main!B40 -> 59.90000153 | D24: 59.90000153 | E24: 86.31 | G24: =IFERROR(SMALL(IF(OFFSET($C$14,0,0,35)=0, "", OFFSET($C$14,0,0,35)),ROW()-ROW($G$13)),"") -> 
B25: =Main!A37 -> 27 | C25: =Main!B37 -> 0 | D25: 0 | E25: 0 | G25: =IFERROR(SMALL(IF(OFFSET($C$14,0,0,35)=0, "", OFFSET($C$14,0,0,35)),ROW()-ROW($G$13)),"") -> 
B26: =Main!A23 -> 13 | C26: =Main!B23 -> 0 | D26: 0 | E26: 0 | G26: =IFERROR(SMALL(IF(OFFSET($C$14,0,0,35)=0, "", OFFSET($C$14,0,0,35)),ROW()-ROW($G$13)),"") -> 
B27: =Main!A27 -> 17 | C27: =Main!B27 -> 74.40000153 | D27: 74.40000153 | E27: 65.08 | G27: =IFERROR(SMALL(IF(OFFSET($C$14,0,0,35)=0, "", OFFSET($C$14,0,0,35)),ROW()-ROW($G$13)),"") -> 
B28: =Main!A13 -> 3 | C28: =Main!B13 -> 29 | D28: 29 | E28: 131.55 | G28: =IFERROR(SMALL(IF(OFFSET($C$14,0,0,35)=0, "", OFFSET($C$14,0,0,35)),ROW()-ROW($G$13)),"") -> 
B29: =Main!A16 -> 6 | C29: =Main!B16 -> 0 | D29: 0 | E29: 0 | G29: =IFERROR(SMALL(IF(OFFSET($C$14,0,0,35)=0, "", OFFSET($C$14,0,0,35)),ROW()-ROW($G$13)),"") -> 
B30: =Main!A15 -> 5 | C30: =Main!B15 -> 46.90000153 | D30: 46.90000153 | E30: 105.34 | G30: =IFERROR(SMALL(IF(OFFSET($C$14,0,0,35)=0, "", OFFSET($C$14,0,0,35)),ROW()-ROW($G$13)),"") -> 
B31: =Main!A19 -> 9 | C31: =Main!B19 -> 16.39999962 | D31: 16.39999962 | E31: 150 | G31: =IFERROR(SMALL(IF(OFFSET($C$14,0,0,35)=0, "", OFFSET($C$14,0,0,35)),ROW()-ROW($G$13)),"") -> 
B32: =Main!A42 -> 0 | C32: =Main!B42 -> 0 | D32: 0 | E32: 0 | G32: =IFERROR(SMALL(IF(OFFSET($C$14,0,0,35)=0, "", OFFSET($C$14,0,0,35)),ROW()-ROW($G$13)),"") -> 
B33: =Main!A26 -> 16 | C33: =Main!B26 -> 61.70000076 | D33: 61.70000076 | E33: 83.67 | G33: =IFERROR(SMALL(IF(OFFSET($C$14,0,0,35)=0, "", OFFSET($C$14,0,0,35)),ROW()-ROW($G$13)),"") -> 
B34: =Main!A24 -> 14 | C34: =Main!B24 -> 0 | D34: 0 | E34: 0 | G34: =IFERROR(SMALL(IF(OFFSET($C$14,0,0,35)=0, "", OFFSET($C$14,0,0,35)),ROW()-ROW($G$13)),"") -> 
B35: =Main!A14 -> 4 | C35: =Main!B14 -> 0 | D35: 0 | E35: 0 | G35: =IFERROR(SMALL(IF(OFFSET($C$14,0,0,35)=0, "", OFFSET($C$14,0,0,35)),ROW()-ROW($G$13)),"") -> 
B36: =Main!A22 -> 12 | C36: =Main!B22 -> 86.80000305 | D36: 84.70000076 | E36: 50 | G36: =IFERROR(SMALL(IF(OFFSET($C$14,0,0,35)=0, "", OFFSET($C$14,0,0,35)),ROW()-ROW($G$13)),"") -> 
B37: =Main!A18 -> 8 | C37: =Main!B18 -> 0 | D37: 0 | E37: 0 | G37: =IFERROR(SMALL(IF(OFFSET($C$14,0,0,35)=0, "", OFFSET($C$14,0,0,35)),ROW()-ROW($G$13)),"") -> 
B38: =Main!A17 -> 7 | C38: =Main!B17 -> 0 | D38: 0 | E38: 0 | G38: =IFERROR(SMALL(IF(OFFSET($C$14,0,0,35)=0, "", OFFSET($C$14,0,0,35)),ROW()-ROW($G$13)),"") -> 
B39: =Main!A25 -> 15 | C39: =Main!B25 -> 0 | D39: 0 | E39: 0 | G39: =IFERROR(SMALL(IF(OFFSET($C$14,0,0,35)=0, "", OFFSET($C$14,0,0,35)),ROW()-ROW($G$13)),"") -> 
B40: =Main!A44 -> 0 | C40: =Main!B44 -> 0 | D40: 0 | E40: 0 | G40: =IFERROR(SMALL(IF(OFFSET($C$14,0,0,35)=0, "", OFFSET($C$14,0,0,35)),ROW()-ROW($G$13)),"") -> 
B41: =Main!A45 -> 0 | C41: =Main!B45 -> 0 | D41: 0 | E41: 0 | G41: =IFERROR(SMALL(IF(OFFSET($C$14,0,0,35)=0, "", OFFSET($C$14,0,0,35)),ROW()-ROW($G$13)),"") -> 
B42: =Main!A29 -> 19 | C42: =Main!B29 -> 0 | D42: 0 | E42: 0 | G42: =IFERROR(SMALL(IF(OFFSET($C$14,0,0,35)=0, "", OFFSET($C$14,0,0,35)),ROW()-ROW($G$13)),"") -> 
B43: =Main!A32 -> 22 | C43: =Main!B32 -> 0 | D43: 0 | E43: 0 | G43: =IFERROR(SMALL(IF(OFFSET($C$14,0,0,35)=0, "", OFFSET($C$14,0,0,35)),ROW()-ROW($G$13)),"") -> 
B44: =Main!A33 -> 23 | C44: =Main!B33 -> 0 | D44: 0 | E44: 0 | G44: =IFERROR(SMALL(IF(OFFSET($C$14,0,0,35)=0, "", OFFSET($C$14,0,0,35)),ROW()-ROW($G$13)),"") -> 
B45: =Main!A34 -> 24 | C45: =Main!B34 -> 0 | D45: 0 | E45: 0 | G45: =IFERROR(SMALL(IF(OFFSET($C$14,0,0,35)=0, "", OFFSET($C$14,0,0,35)),ROW()-ROW($G$13)),"") -> 
B46: =Main!A36 -> 26 | C46: =Main!B36 -> 0 | D46: 0 | E46: 0 | G46: =IFERROR(SMALL(IF(OFFSET($C$14,0,0,35)=0, "", OFFSET($C$14,0,0,35)),ROW()-ROW($G$13)),"") -> 
B47: =Main!A38 -> 28 | C47: =Main!B38 -> 0 | D47: 0 | E47: 0 | G47: =IFERROR(SMALL(IF(OFFSET($C$14,0,0,35)=0, "", OFFSET($C$14,0,0,35)),ROW()-ROW($G$13)),"") -> 
B48: =Main!A39 -> 29 | C48: =Main!B39 -> 0 | D48: 0 | E48: 0 | G48: =IFERROR(SMALL(IF(OFFSET($C$14,0,0,35)=0, "", OFFSET($C$14,0,0,35)),ROW()-ROW($G$13)),"") -> 

Sheet AutoNav
B2: Reference Information (N is driven by value on Main Sheet) | F2: Outlier Rejection
F3: Q1 | G3: =IF(C4*0.25=INT(C4*0.25),(OFFSET(G13,C4*0.25,0)+OFFSET(G13,C4*0.25+1,0))/2,OFFSET(G13,_xlfn.CEILING.MATH(C4*0.25),0)) -> 71.80000305
B4: N: | C4: =COUNTIF(C14:C48, "<>0") -> 18 | F4: Q3 | G4: =IF(C4*0.75=INT(C4*0.75),(OFFSET(G13,C4*0.75,0)+OFFSET(G13,C4*0.75+1,0))/2,OFFSET(G13,_xlfn.CEILING.MATH(C4*0.75),0)) -> 125.8000031
B5: Score type: | C5: 1 decimal | F5: RLower | G5: =G3-1*(G4-G3) -> 17.80000305 | H5: =Q1-1*(Q3-Q1)
B6: Max or min to win? | C6: Min | F6: RUpper | G6: =G4+1*(G4-G3) -> 179.8000031 | H6: =Q3+1*(Q3-Q1)
B8: Minimum and Maximum score | F8: Bounded Score Information
B9: Max score (CMax) | C9: 150 | F9: BLast | G9: =MAX(OFFSET($D$14,0,0,35)) -> 144.3999939
B10: Min score (CMin) | C10: =MAX(C9-20*(C4-1),50) -> 50 | D10: =Max(Cmax-20*(N-1), 50) | F10: BFirst | G10: =MIN(IF(OFFSET($D$14,0,0,35)=0,"",OFFSET($D$14,0,0,35))) -> 31.79999924
E11: To re-sort after data has been updated, click the arrow next to
B12: Computed Score = ABS((B-Blast)/(Bfirst-Blast)) * (Cmax - Cmin) + Cmin | E12: Computed Score and select "Largest to Smallest"
B13: Team # | C13: Raw Score (R) | D13: Bounded Score (B) | E13: Computed Score (C) | G13: Sorted Raw Scores (for Quartile calcs)
B14: =Main!A11 -> 1 | C14: =Main!D11 -> 126.0999985 | D14: =IF(C14<>0,IF(C14<$G$5,$G$5,IF(C14>$G$6,$G$6,C14)),0) -> 126.0999985 | E14: =IF(D14>0,IF(($G$10-$G$9)<>0,ROUND((D14-$G$9)/($G$10-$G$9)*($C$9-$C$10)+$C$10,2),150),0) -> 66.25 | G14: =IFERROR(SMALL(IF(OFFSET($C$14,0,0,35)=0, "", OFFSET($C$14,0,0,35)),ROW()-ROW($G$13)),"") -> 31.79999924
B15: =Main!A34 -> 24 | C15: =Main!D34 -> 80.40000153 | D15: 80.40000153 | E15: 106.84 | G15: =IFERROR(SMALL(IF(OFFSET($C$14,0,0,35)=0, "", OFFSET($C$14,0,0,35)),ROW()-ROW($G$13)),"") -> 37.20000076
B16: =Main!A30 -> 20 | C16: =Main!D30 -> 31.79999924 | D16: 31.79999924 | E16: 150 | G16: =IFERROR(SMALL(IF(OFFSET($C$14,0,0,35)=0, "", OFFSET($C$14,0,0,35)),ROW()-ROW($G$13)),"") -> 55
B17: =Main!A29 -> 19 | C17: =Main!D29 -> 0 | D17: 0 | E17: 0 | G17: =IFERROR(SMALL(IF(OFFSET($C$14,0,0,35)=0, "", OFFSET($C$14,0,0,35)),ROW()-ROW($G$13)),"") -> 65.5
B18: =Main!A44 -> 0 | C18: =Main!D44 -> 0 | D18: 0 | E18: 0 | G18: =IFERROR(SMALL(IF(OFFSET($C$14,0,0,35)=0, "", OFFSET($C$14,0,0,35)),ROW()-ROW($G$13)),"") -> 71.80000305
B19: =Main!A33 -> 23 | C19: =Main!D33 -> 99.69999695 | D19: 99.69999695 | E19: 89.7 | G19: =IFERROR(SMALL(IF(OFFSET($C$14,0,0,35)=0, "", OFFSET($C$14,0,0,35)),ROW()-ROW($G$13)),"") -> 79.90000153
B20: =Main!A39 -> 29 | C20: =Main!D39 -> 71.80000305 | D20: 71.80000305 | E20: 114.48 | G20: =IFERROR(SMALL(IF(OFFSET($C$14,0,0,35)=0, "", OFFSET($C$14,0,0,35)),ROW()-ROW($G$13)),"") -> 80.40000153
B21: =Main!A18 -> 8 | C21: =Main!D18 -> 0 | D21: 0 | E21: 0 | G21: =IFERROR(SMALL(IF(OFFSET($C$14,0,0,35)=0, "", OFFSET($C$14,0,0,35)),ROW()-ROW($G$13)),"") -> 84.59999847
B22: =Main!A14 -> 4 | C22: =Main!D14 -> 0 | D22: 0 | E22: 0 | G22: =IFERROR(SMALL(IF(OFFSET($C$14,0,0,35)=0, "", OFFSET($C$14,0,0,35)),ROW()-ROW($G$13)),"") -> 92.59999847
B23: =Main!A20 -> 10 | C23: =Main!D20 -> 140 | D23: 140 | E23: 53.91 | G23: =IFERROR(SMALL(IF(OFFSET($C$14,0,0,35)=0, "", OFFSET($C$14,0,0,35)),ROW()-ROW($G$13)),"") -> 99.30000305
B24: =Main!A45 -> 0 | C24: =Main!D45 -> 0 | D24: 0 | E24: 0 | G24: =IFERROR(SMALL(IF(OFFSET($C$14,0,0,35)=0, "", OFFSET($C$14,0,0,35)),ROW()-ROW($G$13)),"") -> 99.69999695
B25: =Main!A23 -> 13 | C25: =Main!D23 -> 118.5999985 | D25: 118.5999985 | E25: 72.91 | G25: =IFERROR(SMALL(IF(OFFSET($C$14,0,0,35)=0, "", OFFSET($C$14,0,0,35)),ROW()-ROW($G$13)),"") -> 118.5999985
B26: =Main!A43 -> 0 | C26: =Main!D43 -> 0 | D26: 0 | E26: 0 | G26: =IFERROR(SMALL(IF(OFFSET($C$14,0,0,35)=0, "", OFFSET($C$14,0,0,35)),ROW()-ROW($G$13)),"") -> 121.8000031
B27: =Main!A13 -> 3 | C27: =Main!D13 -> 0 | D27: 0 | E27: 0 | G27: =IFERROR(SMALL(IF(OFFSET($C$14,0,0,35)=0, "", OFFSET($C$14,0,0,35)),ROW()-ROW($G$13)),"") -> 125.8000031
B28: =Main!A42 -> 0 | C28: =Main!D42 -> 0 | D28: 0 | E28: 0 | G28: =IFERROR(SMALL(IF(OFFSET($C$14,0,0,35)=0, "", OFFSET($C$14,0,0,35)),ROW()-ROW($G$13)),"") -> 126.0999985
B29: =Main!A31 -> 21 | C29: =Main!D31 -> 125.8000031 | D29: 125.8000031 | E29: 66.52 | G29: =IFERROR(SMALL(IF(OFFSET($C$14,0,0,35)=0, "", OFFSET($C$14,0,0,35)),ROW()-ROW($G$13)),"") -> 127.8000031
B30: =Main!A41 -> 0 | C30: =Main!D41 -> 0 | D30: 0 | E30: 0 | G30: =IFERROR(SMALL(IF(OFFSET($C$14,0,0,35)=0, "", OFFSET($C$14,0,0,35)),ROW()-ROW($G$13)),"") -> 140
B31: =Main!A32 -> 22 | C31: =Main!D32 -> 84.59999847 | D31: 84.59999847 | E31: 103.11 | G31: =IFERROR(SMALL(IF(OFFSET($C$14,0,0,35)=0, "", OFFSET($C$14,0,0,35)),ROW()-ROW($G$13)),"") -> 144.3999939
B32: =Main!A25 -> 15 | C32: =Main!D25 -> 55 | D32: 55 | E32: 129.4 | G32: =IFERROR(SMALL(IF(OFFSET($C$14,0,0,35)=0, "", OFFSET($C$14,0,0,35)),ROW()-ROW($G$13)),"") -> 
B33: =Main!A22 -> 12 | C33: =Main!D22 -> 99.30000305 | D33: 99.30000305 | E33: 90.05 | G33: =IFERROR(SMALL(IF(OFFSET($C$14,0,0,35)=0, "", OFFSET($C$14,0,0,35)),ROW()-ROW($G$13)),"") -> 
B34: =Main!A12 -> 2 | C34: =Main!D12 -> 65.5 | D34: 65.5 | E34: 120.07 | G34: =IFERROR(SMALL(IF(OFFSET($C$14,0,0,35)=0, "", OFFSET($C$14,0,0,35)),ROW()-ROW($G$13)),"") -> 
B35: =Main!A19 -> 9 | C35: =Main!D19 -> 79.90000153 | D35: 79.90000153 | E35: 107.28 | G35: =IFERROR(SMALL(IF(OFFSET($C$14,0,0,35)=0, "", OFFSET($C$14,0,0,35)),ROW()-ROW($G$13)),"") -> 
B36: =Main!A16 -> 6 | C36: =Main!D16 -> 0 | D36: 0 | E36: 0 | G36: =IFERROR(SMALL(IF(OFFSET($C$14,0,0,35)=0, "", OFFSET($C$14,0,0,35)),ROW()-ROW($G$13)),"") -> 
B37: =Main!A21 -> 11 | C37: =Main!D21 -> 0 | D37: 0 | E37: 0 | G37: =IFERROR(SMALL(IF(OFFSET($C$14,0,0,35)=0, "", OFFSET($C$14,0,0,35)),ROW()-ROW($G$13)),"") -> 
B38: =Main!A17 -> 7 | C38: =Main!D17 -> 121.8000031 | D38: 121.8000031 | E38: 70.07 | G38: =IFERROR(SMALL(IF(OFFSET($C$14,0,0,35)=0, "", OFFSET($C$14,0,0,35)),ROW()-ROW($G$13)),"") -> 
B39: =Main!A15 -> 5 | C39: =Main!D15 -> 37.20000076 | D39: 37.20000076 | E39: 145.2 | G39: =IFERROR(SMALL(IF(OFFSET($C$14,0,0,35)=0, "", OFFSET($C$14,0,0,35)),ROW()-ROW($G$13)),"") -> 
B40: =Main!A24 -> 14 | C40: =Main!D24 -> 0 | D40: 0 | E40: 0 | G40: =IFERROR(SMALL(IF(OFFSET($C$14,0,0,35)=0, "", OFFSET($C$14,0,0,35)),ROW()-ROW($G$13)),"") -> 
B41: =Main!A26 -> 16 | C41: =Main!D26 -> 0 | D41: 0 | E41: 0 | G41: =IFERROR(SMALL(IF(OFFSET($C$14,0,0,35)=0, "", OFFSET($C$14,0,0,35)),ROW()-ROW($G$13)),"") -> 
B42: =Main!A27 -> 17 | C42: =Main!D27 -> 127.8000031 | D42: 127.8000031 | E42: 64.74 | G42: =IFERROR(SMALL(IF(OFFSET($C$14,0,0,35)=0, "", OFFSET($C$14,0,0,35)),ROW()-ROW($G$13)),"") -> 
B43: =Main!A28 -> 18 | C43: =Main!D28 -> 92.59999847 | D43: 92.59999847 | E43: 96 | G43: =IFERROR(SMALL(IF(OFFSET($C$14,0,0,35)=0, "", OFFSET($C$14,0,0,35)),ROW()-ROW($G$13)),"") -> 
B44: =Main!A35 -> 25 | C44: =Main!D35 -> 0 | D44: 0 | E44: 0 | G44: =IFERROR(SMALL(IF(OFFSET($C$14,0,0,35)=0, "", OFFSET($C$14,0,0,35)),ROW()-ROW($G$13)),"") -> 
B45: =Main!A36 -> 26 | C45: =Main!D36 -> 0 | D45: 0 | E45: 0 | G45: =IFERROR(SMALL(IF(OFFSET($C$14,0,0,35)=0, "", OFFSET($C$14,0,0,35)),ROW()-ROW($G$13)),"") -> 
B46: =Main!A37 -> 27 | C46: =Main!D37 -> 144.3999939 | D46: 144.3999939 | E46: 50 | G46: =IFERROR(SMALL(IF(OFFSET($C$14,0,0,35)=0, "", OFFSET($C$14,0,0,35)),ROW()-ROW($G$13)),"") -> 
B47: =Main!A38 -> 28 | C47: =Main!D38 -> 0 | D47: 0 | E47: 0 | G47: =IFERROR(SMALL(IF(OFFSET($C$14,0,0,35)=0, "", OFFSET($C$14,0,0,35)),ROW()-ROW($G$13)),"") -> 
B48: =Main!A40 -> 30 | C48: =Main!D40 -> 0 | D48: 0 | E48: 0 | G48: =IFERROR(SMALL(IF(OFFSET($C$14,0,0,35)=0, "", OFFSET($C$14,0,0,35)),ROW()-ROW($G$13)),"") -> 

Sheet Hyperdrive
B2: Reference Information (N is driven by value on Main Sheet) | F2: Outlier Rejection
F3: Q1 | G3: =IF(C4*0.25=INT(C4*0.25),(OFFSET(G13,C4*0.25,0)+OFFSET(G13,C4*0.25+1,0))/2,OFFSET(G13,_xlfn.CEILING.MATH(C4*0.25),0)) -> 85.19999695
B4: N: | C4: =COUNTIF(C14:C48, "<>0") -> 30 | F4: Q3 | G4: =IF(C4*0.75=INT(C4*0.75),(OFFSET(G13,C4*0.75,0)+OFFSET(G13,C4*0.75+1,0))/2,OFFSET(G13,_xlfn.CEILING.MATH(C4*0.75),0)) -> 161.6000061
B5: Score type: | C5: 1 decimal | F5: RLower | G5: =G3-1*(G4-G3) -> 8.799987793 | H5: =Q1-1*(Q3-Q1)
B6: Max or min to win? | C6: Min | F6: RUpper | G6: =G4+1*(G4-G3) -> 238.0000153 | H6: =Q3+1*(Q3-Q1)
B8: Minimum and Maximum score | F8: Bounded Score Information
B9: Max score (CMax) | C9: 150 | F9: BLast | G9: =MAX(OFFSET($D$14,0,0,35)) -> 197.6999969
B10: Min score (CMin) | C10: =MAX(C9-20*(C4-1),50) -> 50 | D10: =Max(Cmax-20*(N-1), 50) | F10: BFirst | G10: =MIN(IF(OFFSET($D$14,0,0,35)=0,"",OFFSET($D$14,0,0,35))) -> 54.5
E11: To re-sort after data has been updated, click the arrow next to
B12: Computed Score = ABS((B-Blast)/(Bfirst-Blast)) * (Cmax - Cmin) + Cmin | E12: Computed Score and select "Largest to Smallest"
B13: Team # | C13: Raw Score (R) | D13: Bounded Score (B) | E13: Computed Score (C) | G13: Sorted Raw Scores (for Quartile calcs)
B14: =Main!A15 -> 5 | C14: =Main!F15 -> 88.40000153 | D14: =IF(C14<>0,IF(C14<$G$5,$G$5,IF(C14>$G$6,$G$6,C14)),0) -> 88.40000153 | E14: =IF(D14>0,IF(($G$10-$G$9)<>0,ROUND((D14-$G$9)/($G$10-$G$9)*($C$9-$C$10)+$C$10,2),150),0) -> 126.33 | G14: =IFERROR(SMALL(IF(OFFSET($C$14,0,0,35)=0, "", OFFSET($C$14,0,0,35)),ROW()-ROW($G$13)),"") -> 54.5
B15: =Main!A43 -> 0 | C15: =Main!F43 -> 0 | D15: 0 | E15: 0 | G15: =IFERROR(SMALL(IF(OFFSET($C$14,0,0,35)=0, "", OFFSET($C$14,0,0,35)),ROW()-ROW($G$13)),"") -> 63.29999924
B16: =Main!A16 -> 6 | C16: =Main!F16 -> 165.6999969 | D16: 165.6999969 | E16: 72.35 | G16: =IFERROR(SMALL(IF(OFFSET($C$14,0,0,35)=0, "", OFFSET($C$14,0,0,35)),ROW()-ROW($G$13)),"") -> 73.69999695
B17: =Main!A29 -> 19 | C17: =Main!F29 -> 175.8000031 | D17: 175.8000031 | E17: 65.29 | G17: =IFERROR(SMALL(IF(OFFSET($C$14,0,0,35)=0, "", OFFSET($C$14,0,0,35)),ROW()-ROW($G$13)),"") -> 74.19999695
B18: =Main!A24 -> 14 | C18: =Main!F24 -> 138.3000031 | D18: 138.3000031 | E18: 91.48 | G18: =IFERROR(SMALL(IF(OFFSET($C$14,0,0,35)=0, "", OFFSET($C$14,0,0,35)),ROW()-ROW($G$13)),"") -> 74.69999695
B19: =Main!A40 -> 30 | C19: =Main!F40 -> 190.3000031 | D19: 190.3000031 | E19: 55.17 | G19: =IFERROR(SMALL(IF(OFFSET($C$14,0,0,35)=0, "", OFFSET($C$14,0,0,35)),ROW()-ROW($G$13)),"") -> 79.69999695
B20: =Main!A30 -> 20 | C20: =Main!F30 -> 165.6000061 | D20: 165.6000061 | E20: 72.42 | G20: =IFERROR(SMALL(IF(OFFSET($C$14,0,0,35)=0, "", OFFSET($C$14,0,0,35)),ROW()-ROW($G$13)),"") -> 83.69999695
B21: =Main!A39 -> 29 | C21: =Main!F39 -> 172.8999939 | D21: 172.8999939 | E21: 67.32 | G21: =IFERROR(SMALL(IF(OFFSET($C$14,0,0,35)=0, "", OFFSET($C$14,0,0,35)),ROW()-ROW($G$13)),"") -> 85.19999695
B22: =Main!A17 -> 7 | C22: =Main!F17 -> 73.69999695 | D22: 73.69999695 | E22: 136.59 | G22: =IFERROR(SMALL(IF(OFFSET($C$14,0,0,35)=0, "", OFFSET($C$14,0,0,35)),ROW()-ROW($G$13)),"") -> 88.40000153
B23: =Main!A23 -> 13 | C23: =Main!F23 -> 74.19999695 | D23: 74.19999695 | E23: 136.24 | G23: =IFERROR(SMALL(IF(OFFSET($C$14,0,0,35)=0, "", OFFSET($C$14,0,0,35)),ROW()-ROW($G$13)),"") -> 93.09999847
B24: =Main!A37 -> 27 | C24: =Main!F37 -> 79.69999695 | D24: 79.69999695 | E24: 132.4 | G24: =IFERROR(SMALL(IF(OFFSET($C$14,0,0,35)=0, "", OFFSET($C$14,0,0,35)),ROW()-ROW($G$13)),"") -> 94.80000305
B25: =Main!A18 -> 8 | C25: =Main!F18 -> 156.5 | D25: 156.5 | E25: 78.77 | G25: =IFERROR(SMALL(IF(OFFSET($C$14,0,0,35)=0, "", OFFSET($C$14,0,0,35)),ROW()-ROW($G$13)),"") -> 124.0999985
B26: =Main!A34 -> 24 | C26: =Main!F34 -> 157.5 | D26: 157.5 | E26: 78.07 | G26: =IFERROR(SMALL(IF(OFFSET($C$14,0,0,35)=0, "", OFFSET($C$14,0,0,35)),ROW()-ROW($G$13)),"") -> 131.3000031
B27: =Main!A20 -> 10 | C27: =Main!F20 -> 63.29999924 | D27: 63.29999924 | E27: 143.85 | G27: =IFERROR(SMALL(IF(OFFSET($C$14,0,0,35)=0, "", OFFSET($C$14,0,0,35)),ROW()-ROW($G$13)),"") -> 138.3000031
B28: =Main!A36 -> 26 | C28: =Main!F36 -> 94.80000305 | D28: 94.80000305 | E28: 121.86 | G28: =IFERROR(SMALL(IF(OFFSET($C$14,0,0,35)=0, "", OFFSET($C$14,0,0,35)),ROW()-ROW($G$13)),"") -> 141.3999939
B29: =Main!A42 -> 0 | C29: =Main!F42 -> 0 | D29: 0 | E29: 0 | G29: =IFERROR(SMALL(IF(OFFSET($C$14,0,0,35)=0, "", OFFSET($C$14,0,0,35)),ROW()-ROW($G$13)),"") -> 143.3000031
B30: =Main!A35 -> 25 | C30: =Main!F35 -> 157.1000061 | D30: 157.1000061 | E30: 78.35 | G30: =IFERROR(SMALL(IF(OFFSET($C$14,0,0,35)=0, "", OFFSET($C$14,0,0,35)),ROW()-ROW($G$13)),"") -> 146.1000061
B31: =Main!A28 -> 18 | C31: =Main!F28 -> 74.69999695 | D31: 74.69999695 | E31: 135.89 | G31: =IFERROR(SMALL(IF(OFFSET($C$14,0,0,35)=0, "", OFFSET($C$14,0,0,35)),ROW()-ROW($G$13)),"") -> 150.1000061
B32: =Main!A44 -> 0 | C32: =Main!F44 -> 0 | D32: 0 | E32: 0 | G32: =IFERROR(SMALL(IF(OFFSET($C$14,0,0,35)=0, "", OFFSET($C$14,0,0,35)),ROW()-ROW($G$13)),"") -> 156.5
B33: =Main!A41 -> 0 | C33: =Main!F41 -> 0 | D33: 0 | E33: 0 | G33: =IFERROR(SMALL(IF(OFFSET($C$14,0,0,35)=0, "", OFFSET($C$14,0,0,35)),ROW()-ROW($G$13)),"") -> 157.1000061
B34: =Main!A21 -> 11 | C34: =Main!F21 -> 131.3000031 | D34: 131.3000031 | E34: 96.37 | G34: =IFERROR(SMALL(IF(OFFSET($C$14,0,0,35)=0, "", OFFSET($C$14,0,0,35)),ROW()-ROW($G$13)),"") -> 157.5
B35: =Main!A12 -> 2 | C35: =Main!F12 -> 83.69999695 | D35: 83.69999695 | E35: 129.61 | G35: =IFERROR(SMALL(IF(OFFSET($C$14,0,0,35)=0, "", OFFSET($C$14,0,0,35)),ROW()-ROW($G$13)),"") -> 159
B36: =Main!A14 -> 4 | C36: =Main!F14 -> 54.5 | D36: 54.5 | E36: 150 | G36: =IFERROR(SMALL(IF(OFFSET($C$14,0,0,35)=0, "", OFFSET($C$14,0,0,35)),ROW()-ROW($G$13)),"") -> 161.6000061
B37: =Main!A38 -> 28 | C37: =Main!F38 -> 85.19999695 | D37: 85.19999695 | E37: 128.56 | G37: =IFERROR(SMALL(IF(OFFSET($C$14,0,0,35)=0, "", OFFSET($C$14,0,0,35)),ROW()-ROW($G$13)),"") -> 165.6000061
B38: =Main!A26 -> 16 | C38: =Main!F26 -> 150.1000061 | D38: 150.1000061 | E38: 83.24 | G38: =IFERROR(SMALL(IF(OFFSET($C$14,0,0,35)=0, "", OFFSET($C$14,0,0,35)),ROW()-ROW($G$13)),"") -> 165.6999969
B39: =Main!A27 -> 17 | C39: =Main!F27 -> 143.3000031 | D39: 143.3000031 | E39: 87.99 | G39: =IFERROR(SMALL(IF(OFFSET($C$14,0,0,35)=0, "", OFFSET($C$14,0,0,35)),ROW()-ROW($G$13)),"") -> 172.8999939
B40: =Main!A13 -> 3 | C40: =Main!F13 -> 197.6999969 | D40: 197.6999969 | E40: 50 | G40: =IFERROR(SMALL(IF(OFFSET($C$14,0,0,35)=0, "", OFFSET($C$14,0,0,35)),ROW()-ROW($G$13)),"") -> 175.8000031
B41: =Main!A33 -> 23 | C41: =Main!F33 -> 93.09999847 | D41: 93.09999847 | E41: 123.04 | G41: =IFERROR(SMALL(IF(OFFSET($C$14,0,0,35)=0, "", OFFSET($C$14,0,0,35)),ROW()-ROW($G$13)),"") -> 190.3000031
B42: =Main!A22 -> 12 | C42: =Main!F22 -> 161.6000061 | D42: 161.6000061 | E42: 75.21 | G42: =IFERROR(SMALL(IF(OFFSET($C$14,0,0,35)=0, "", OFFSET($C$14,0,0,35)),ROW()-ROW($G$13)),"") -> 196.8000031
B43: =Main!A32 -> 22 | C43: =Main!F32 -> 124.0999985 | D43: 124.0999985 | E43: 101.4 | G43: =IFERROR(SMALL(IF(OFFSET($C$14,0,0,35)=0, "", OFFSET($C$14,0,0,35)),ROW()-ROW($G$13)),"") -> 197.6999969
B44: =Main!A11 -> 1 | C44: =Main!F11 -> 146.1000061 | D44: 146.1000061 | E44: 86.03 | G44: =IFERROR(SMALL(IF(OFFSET($C$14,0,0,35)=0, "", OFFSET($C$14,0,0,35)),ROW()-ROW($G$13)),"") -> 
B45: =Main!A19 -> 9 | C45: =Main!F19 -> 141.3999939 | D45: 141.3999939 | E45: 89.32 | G45: =IFERROR(SMALL(IF(OFFSET($C$14,0,0,35)=0, "", OFFSET($C$14,0,0,35)),ROW()-ROW($G$13)),"") -> 
B46: =Main!A25 -> 15 | C46: =Main!F25 -> 196.8000031 | D46: 196.8000031 | E46: 50.63 | G46: =IFERROR(SMALL(IF(OFFSET($C$14,0,0,35)=0, "", OFFSET($C$14,0,0,35)),ROW()-ROW($G$13)),"") -> 
B47: =Main!A31 -> 21 | C47: =Main!F31 -> 159 | D47: 159 | E47: 77.03 | G47: =IFERROR(SMALL(IF(OFFSET($C$14,0,0,35)=0, "", OFFSET($C$14,0,0,35)),ROW()-ROW($G$13)),"") -> 
B48: =Main!A45 -> 0 | C48: =Main!F45 -> 0 | D48: 0 | E48: 0 | G48: =IFERROR(SMALL(IF(OFFSET($C$14,0,0,35)=0, "", OFFSET($C$14,0,0,35)),ROW()-ROW($G$13)),"") -> 

Sheet InterstellarAccuracy
B2: Reference Information (N is driven by value on Main Sheet) | F2: Outlier Rejection
F3: Q1 | G3: =IF(C4*0.25=INT(C4*0.25),(OFFSET(G13,C4*0.25,0)+OFFSET(G13,C4*0.25+1,0))/2,OFFSET(G13,_xlfn.CEILING.MATH(C4*0.25),0)) -> 13
B4: N: | C4: =COUNTIF(C14:C48, "<>0") -> 27 | F4: Q3 | G4: =IF(C4*0.75=INT(C4*0.75),(OFFSET(G13,C4*0.75,0)+OFFSET(G13,C4*0.75+1,0))/2,OFFSET(G13,_xlfn.CEILING.MATH(C4*0.75),0)) -> 32
B5: Score type: | C5: 1 decimal | F5: RLower | G5: =G3-1*(G4-G3) -> -6 | H5: =Q1-1*(Q3-Q1)
B6: Max or min to win? | C6: Max | F6: RUpper | G6: =G4+1*(G4-G3) -> 51 | H6: =Q3+1*(Q3-Q1)
B8: Minimum and Maximum score | F8: Bounded Score Information
B9: Max score (CMax) | C9: 150 | F9: BLast | G9: =MIN(IF(OFFSET($D$14,0,0,35)=0,"",OFFSET($D$14,0,0,35))) -> 8
B10: Min score (CMin) | C10: =MAX(C9-20*(C4-1),50) -> 50 | D10: =Max(Cmax-20*(N-1), 50) | F10: BFirst | G10: =MAX(OFFSET($D$14,0,0,35)) -> 45
E11: To re-sort after data has been updated, click the arrow next to
B12: Computed Score = ABS((B-Blast)/(Bfirst-Blast)) * (Cmax - Cmin) + Cmin | E12: Computed Score and select "Largest to Smallest"
B13: Team # | C13: Raw Score (R) | D13: Bounded Score (B) | E13: Computed Score (C) | G13: Sorted Raw Scores (for Quartile calcs)
B14: =Main!A35 -> 25 | C14: =Main!H35 -> 27 | D14: =IF(C14<>0,IF(C14<$G$5,$G$5,IF(C14>$G$6,$G$6,C14)),0) -> 27 | E14: =IF(D14>0,IF(($G$10-$G$9)<>0,ROUND((D14-$G$9)/($G$10-$G$9)*($C$9-$C$10)+$C$10,2),150),0) -> 101.35 | G14: =IFERROR(SMALL(IF(OFFSET($C$14,0,0,35)=0, "", OFFSET($C$14,0,0,35)),ROW()-ROW($G$13)),"") -> 8
B15: =Main!A16 -> 6 | C15: =Main!H16 -> 41 | D15: 41 | E15: 139.19 | G15: =IFERROR(SMALL(IF(OFFSET($C$14,0,0,35)=0, "", OFFSET($C$14,0,0,35)),ROW()-ROW($G$13)),"") -> 9
B16: =Main!A13 -> 3 | C16: =Main!H13 -> 32 | D16: 32 | E16: 114.86 | G16: =IFERROR(SMALL(IF(OFFSET($C$14,0,0,35)=0, "", OFFSET($C$14,0,0,35)),ROW()-ROW($G$13)),"") -> 9
B17: =Main!A31 -> 21 | C17: =Main!H31 -> 0 | D17: 0 | E17: 0 | G17: =IFERROR(SMALL(IF(OFFSET($C$14,0,0,35)=0, "", OFFSET($C$14,0,0,35)),ROW()-ROW($G$13)),"") -> 9
B18: =Main!A23 -> 13 | C18: =Main!H23 -> 9 | D18: 9 | E18: 52.7 | G18: =IFERROR(SMALL(IF(OFFSET($C$14,0,0,35)=0, "", OFFSET($C$14,0,0,35)),ROW()-ROW($G$13)),"") -> 11
B19: =Main!A21 -> 11 | C19: =Main!H21 -> 28 | D19: 28 | E19: 104.05 | G19: =IFERROR(SMALL(IF(OFFSET($C$14,0,0,35)=0, "", OFFSET($C$14,0,0,35)),ROW()-ROW($G$13)),"") -> 11
B20: =Main!A32 -> 22 | C20: =Main!H32 -> 37 | D20: 37 | E20: 128.38 | G20: =IFERROR(SMALL(IF(OFFSET($C$14,0,0,35)=0, "", OFFSET($C$14,0,0,35)),ROW()-ROW($G$13)),"") -> 13
B21: =Main!A20 -> 10 | C21: =Main!H20 -> 27 | D21: 27 | E21: 101.35 | G21: =IFERROR(SMALL(IF(OFFSET($C$14,0,0,35)=0, "", OFFSET($C$14,0,0,35)),ROW()-ROW($G$13)),"") -> 17
B22: =Main!A41 -> 0 | C22: =Main!H41 -> 0 | D22: 0 | E22: 0 | G22: =IFERROR(SMALL(IF(OFFSET($C$14,0,0,35)=0, "", OFFSET($C$14,0,0,35)),ROW()-ROW($G$13)),"") -> 19
B23: =Main!A17 -> 7 | C23: =Main!H17 -> 38 | D23: 38 | E23: 131.08 | G23: =IFERROR(SMALL(IF(OFFSET($C$14,0,0,35)=0, "", OFFSET($C$14,0,0,35)),ROW()-ROW($G$13)),"") -> 22
B24: =Main!A33 -> 23 | C24: =Main!H33 -> 22 | D24: 22 | E24: 87.84 | G24: =IFERROR(SMALL(IF(OFFSET($C$14,0,0,35)=0, "", OFFSET($C$14,0,0,35)),ROW()-ROW($G$13)),"") -> 22
B25: =Main!A37 -> 27 | C25: =Main!H37 -> 0 | D25: 0 | E25: 0 | G25: =IFERROR(SMALL(IF(OFFSET($C$14,0,0,35)=0, "", OFFSET($C$14,0,0,35)),ROW()-ROW($G$13)),"") -> 23
B26: =Main!A43 -> 0 | C26: =Main!H43 -> 0 | D26: 0 | E26: 0 | G26: =IFERROR(SMALL(IF(OFFSET($C$14,0,0,35)=0, "", OFFSET($C$14,0,0,35)),ROW()-ROW($G$13)),"") -> 23
B27: =Main!A39 -> 29 | C27: =Main!H39 -> 13 | D27: 13 | E27: 63.51 | G27: =IFERROR(SMALL(IF(OFFSET($C$14,0,0,35)=0, "", OFFSET($C$14,0,0,35)),ROW()-ROW($G$13)),"") -> 26
B28: =Main!A15 -> 5 | C28: =Main!H15 -> 26 | D28: 26 | E28: 98.65 | G28: =IFERROR(SMALL(IF(OFFSET($C$14,0,0,35)=0, "", OFFSET($C$14,0,0,35)),ROW()-ROW($G$13)),"") -> 26
B29: =Main!A28 -> 18 | C29: =Main!H28 -> 33 | D29: 33 | E29: 117.57 | G29: =IFERROR(SMALL(IF(OFFSET($C$14,0,0,35)=0, "", OFFSET($C$14,0,0,35)),ROW()-ROW($G$13)),"") -> 27
B30: =Main!A24 -> 14 | C30: =Main!H24 -> 9 | D30: 9 | E30: 52.7 | G30: =IFERROR(SMALL(IF(OFFSET($C$14,0,0,35)=0, "", OFFSET($C$14,0,0,35)),ROW()-ROW($G$13)),"") -> 27
B31: =Main!A45 -> 0 | C31: =Main!H45 -> 0 | D31: 0 | E31: 0 | G31: =IFERROR(SMALL(IF(OFFSET($C$14,0,0,35)=0, "", OFFSET($C$14,0,0,35)),ROW()-ROW($G$13)),"") -> 28
B32: =Main!A14 -> 4 | C32: =Main!H14 -> 19 | D32: 19 | E32: 79.73 | G32: =IFERROR(SMALL(IF(OFFSET($C$14,0,0,35)=0, "", OFFSET($C$14,0,0,35)),ROW()-ROW($G$13)),"") -> 30
B33: =Main!A30 -> 20 | C33: =Main!H30 -> 22 | D33: 22 | E33: 87.84 | G33: =IFERROR(SMALL(IF(OFFSET($C$14,0,0,35)=0, "", OFFSET($C$14,0,0,35)),ROW()-ROW($G$13)),"") -> 32
B34: =Main!A22 -> 12 | C34: =Main!H22 -> 11 | D34: 11 | E34: 58.11 | G34: =IFERROR(SMALL(IF(OFFSET($C$14,0,0,35)=0, "", OFFSET($C$14,0,0,35)),ROW()-ROW($G$13)),"") -> 32
B35: =Main!A19 -> 9 | C35: =Main!H19 -> 0 | D35: 0 | E35: 0 | G35: =IFERROR(SMALL(IF(OFFSET($C$14,0,0,35)=0, "", OFFSET($C$14,0,0,35)),ROW()-ROW($G$13)),"") -> 33
B36: =Main!A42 -> 0 | C36: =Main!H42 -> 0 | D36: 0 | E36: 0 | G36: =IFERROR(SMALL(IF(OFFSET($C$14,0,0,35)=0, "", OFFSET($C$14,0,0,35)),ROW()-ROW($G$13)),"") -> 34
B37: =Main!A29 -> 19 | C37: =Main!H29 -> 26 | D37: 26 | E37: 98.65 | G37: =IFERROR(SMALL(IF(OFFSET($C$14,0,0,35)=0, "", OFFSET($C$14,0,0,35)),ROW()-ROW($G$13)),"") -> 37
B38: =Main!A38 -> 28 | C38: =Main!H38 -> 17 | D38: 17 | E38: 74.32 | G38: =IFERROR(SMALL(IF(OFFSET($C$14,0,0,35)=0, "", OFFSET($C$14,0,0,35)),ROW()-ROW($G$13)),"") -> 38
B39: =Main!A27 -> 17 | C39: =Main!H27 -> 8 | D39: 8 | E39: 50 | G39: =IFERROR(SMALL(IF(OFFSET($C$14,0,0,35)=0, "", OFFSET($C$14,0,0,35)),ROW()-ROW($G$13)),"") -> 41
B40: =Main!A18 -> 8 | C40: =Main!H18 -> 23 | D40: 23 | E40: 90.54 | G40: =IFERROR(SMALL(IF(OFFSET($C$14,0,0,35)=0, "", OFFSET($C$14,0,0,35)),ROW()-ROW($G$13)),"") -> 45
B41: =Main!A11 -> 1 | C41: =Main!H11 -> 34 | D41: 34 | E41: 120.27 | G41: =IFERROR(SMALL(IF(OFFSET($C$14,0,0,35)=0, "", OFFSET($C$14,0,0,35)),ROW()-ROW($G$13)),"") -> 
B42: =Main!A44 -> 0 | C42: =Main!H44 -> 0 | D42: 0 | E42: 0 | G42: =IFERROR(SMALL(IF(OFFSET($C$14,0,0,35)=0, "", OFFSET($C$14,0,0,35)),ROW()-ROW($G$13)),"") -> 
B43: =Main!A36 -> 26 | C43: =Main!H36 -> 23 | D43: 23 | E43: 90.54 | G43: =IFERROR(SMALL(IF(OFFSET($C$14,0,0,35)=0, "", OFFSET($C$14,0,0,35)),ROW()-ROW($G$13)),"") -> 
B44: =Main!A40 -> 30 | C44: =Main!H40 -> 30 | D44: 30 | E44: 109.46 | G44: =IFERROR(SMALL(IF(OFFSET($C$14,0,0,35)=0, "", OFFSET($C$14,0,0,35)),ROW()-ROW($G$13)),"") -> 
B45: =Main!A34 -> 24 | C45: =Main!H34 -> 45 | D45: 45 | E45: 150 | G45: =IFERROR(SMALL(IF(OFFSET($C$14,0,0,35)=0, "", OFFSET($C$14,0,0,35)),ROW()-ROW($G$13)),"") -> 
B46: =Main!A26 -> 16 | C46: =Main!H26 -> 9 | D46: 9 | E46: 52.7 | G46: =IFERROR(SMALL(IF(OFFSET($C$14,0,0,35)=0, "", OFFSET($C$14,0,0,35)),ROW()-ROW($G$13)),"") -> 
B47: =Main!A25 -> 15 | C47: =Main!H25 -> 11 | D47: 11 | E47: 58.11 | G47: =IFERROR(SMALL(IF(OFFSET($C$14,0,0,35)=0, "", OFFSET($C$14,0,0,35)),ROW()-ROW($G$13)),"") -> 
B48: =Main!A12 -> 2 | C48: =Main!H12 -> 32 | D48: 32 | E48: 114.86 | G48: =IFERROR(SMALL(IF(OFFSET($C$14,0,0,35)=0, "", OFFSET($C$14,0,0,35)),ROW()-ROW($G$13)),"") -> 

Sheet POWERPORT
B2: Reference Information (N is driven by value on Main Sheet) | F2: Outlier Rejection
F3: Q1 | G3: =IF(C4*0.25=INT(C4*0.25),(OFFSET(G13,C4*0.25,0)+OFFSET(G13,C4*0.25+1,0))/2,OFFSET(G13,_xlfn.CEILING.MATH(C4*0.25),0)) -> 18
B4: N: | C4: =COUNTIF(C14:C48, "<>0") -> 27 | F4: Q3 | G4: =IF(C4*0.75=INT(C4*0.75),(OFFSET(G13,C4*0.75,0)+OFFSET(G13,C4*0.75+1,0))/2,OFFSET(G13,_xlfn.CEILING.MATH(C4*0.75),0)) -> 47
B5: Score type: | C5: 1 decimal | F5: RLower | G5: =G3-1*(G4-G3) -> -11 | H5: =Q1-1*(Q3-Q1)
B6: Max or min to win? | C6: Max | F6: RUpper | G6: =G4+1*(G4-G3) -> 76 | H6: =Q3+1*(Q3-Q1)
B8: Minimum and Maximum score | F8: Bounded Score Information
B9: Max score (CMax) | C9: 150 | F9: BLast | G9: =MIN(IF(OFFSET($D$14,0,0,35)=0,"",OFFSET($D$14,0,0,35))) -> 10
B10: Min score (CMin) | C10: =MAX(C9-20*(C4-1),50) -> 50 | D10: =Max(Cmax-20*(N-1), 50) | F10: BFirst | G10: =MAX(OFFSET($D$14,0,0,35)) -> 59
E11: To re-sort after data has been updated, click the arrow next to
B12: Computed Score = ABS((B-Blast)/(Bfirst-Blast)) * (Cmax - Cmin) + Cmin | E12: Computed Score and select "Largest to Smallest"
B13: Team # | C13: Raw Score (R) | D13: Bounded Score (B) | E13: Computed Score (C) | G13: Sorted Raw Scores (for Quartile calcs)
B14: =Main!A20 -> 10 | C14: =Main!J20 -> 10 | D14: =IF(C14<>0,IF(C14<$G$5,$G$5,IF(C14>$G$6,$G$6,C14)),0) -> 10 | E14: =IF(D14>0,IF(($G$10-$G$9)<>0,ROUND((D14-$G$9)/($G$10-$G$9)*($C$9-$C$10)+$C$10,2),150),0) -> 50 | G14: =IFERROR(SMALL(IF(OFFSET($C$14,0,0,35)=0, "", OFFSET($C$14,0,0,35)),ROW()-ROW($G$13)),"") -> 10
B15: =Main!A27 -> 17 | C15: =Main!J27 -> 37 | D15: 37 | E15: 105.1 | G15: =IFERROR(SMALL(IF(OFFSET($C$14,0,0,35)=0, "", OFFSET($C$14,0,0,35)),ROW()-ROW($G$13)),"") -> 13
B16: =Main!A17 -> 7 | C16: =Main!J17 -> 58 | D16: 58 | E16: 147.96 | G16: =IFERROR(SMALL(IF(OFFSET($C$14,0,0,35)=0, "", OFFSET($C$14,0,0,35)),ROW()-ROW($G$13)),"") -> 13
B17: =Main!A30 -> 20 | C17: =Main!J30 -> 42 | D17: 42 | E17: 115.31 | G17: =IFERROR(SMALL(IF(OFFSET($C$14,0,0,35)=0, "", OFFSET($C$14,0,0,35)),ROW()-ROW($G$13)),"") -> 13
B18: =Main!A21 -> 11 | C18: =Main!J21 -> 37 | D18: 37 | E18: 105.1 | G18: =IFERROR(SMALL(IF(OFFSET($C$14,0,0,35)=0, "", OFFSET($C$14,0,0,35)),ROW()-ROW($G$13)),"") -> 16
B19: =Main!A26 -> 16 | C19: =Main!J26 -> 59 | D19: 59 | E19: 150 | G19: =IFERROR(SMALL(IF(OFFSET($C$14,0,0,35)=0, "", OFFSET($C$14,0,0,35)),ROW()-ROW($G$13)),"") -> 18
B20: =Main!A42 -> 0 | C20: =Main!J42 -> 0 | D20: 0 | E20: 0 | G20: =IFERROR(SMALL(IF(OFFSET($C$14,0,0,35)=0, "", OFFSET($C$14,0,0,35)),ROW()-ROW($G$13)),"") -> 18
B21: =Main!A38 -> 28 | C21: =Main!J38 -> 38 | D21: 38 | E21: 107.14 | G21: =IFERROR(SMALL(IF(OFFSET($C$14,0,0,35)=0, "", OFFSET($C$14,0,0,35)),ROW()-ROW($G$13)),"") -> 20
B22: =Main!A13 -> 3 | C22: =Main!J13 -> 13 | D22: 13 | E22: 56.12 | G22: =IFERROR(SMALL(IF(OFFSET($C$14,0,0,35)=0, "", OFFSET($C$14,0,0,35)),ROW()-ROW($G$13)),"") -> 22
B23: =Main!A44 -> 0 | C23: =Main!J44 -> 0 | D23: 0 | E23: 0 | G23: =IFERROR(SMALL(IF(OFFSET($C$14,0,0,35)=0, "", OFFSET($C$14,0,0,35)),ROW()-ROW($G$13)),"") -> 22
B24: =Main!A16 -> 6 | C24: =Main!J16 -> 0 | D24: 0 | E24: 0 | G24: =IFERROR(SMALL(IF(OFFSET($C$14,0,0,35)=0, "", OFFSET($C$14,0,0,35)),ROW()-ROW($G$13)),"") -> 22
B25: =Main!A12 -> 2 | C25: =Main!J12 -> 18 | D25: 18 | E25: 66.33 | G25: =IFERROR(SMALL(IF(OFFSET($C$14,0,0,35)=0, "", OFFSET($C$14,0,0,35)),ROW()-ROW($G$13)),"") -> 28
B26: =Main!A40 -> 30 | C26: =Main!J40 -> 22 | D26: 22 | E26: 74.49 | G26: =IFERROR(SMALL(IF(OFFSET($C$14,0,0,35)=0, "", OFFSET($C$14,0,0,35)),ROW()-ROW($G$13)),"") -> 30
B27: =Main!A22 -> 12 | C27: =Main!J22 -> 22 | D27: 22 | E27: 74.49 | G27: =IFERROR(SMALL(IF(OFFSET($C$14,0,0,35)=0, "", OFFSET($C$14,0,0,35)),ROW()-ROW($G$13)),"") -> 31
B28: =Main!A41 -> 0 | C28: =Main!J41 -> 0 | D28: 0 | E28: 0 | G28: =IFERROR(SMALL(IF(OFFSET($C$14,0,0,35)=0, "", OFFSET($C$14,0,0,35)),ROW()-ROW($G$13)),"") -> 35
B29: =Main!A25 -> 15 | C29: =Main!J25 -> 0 | D29: 0 | E29: 0 | G29: =IFERROR(SMALL(IF(OFFSET($C$14,0,0,35)=0, "", OFFSET($C$14,0,0,35)),ROW()-ROW($G$13)),"") -> 37
B30: =Main!A36 -> 26 | C30: =Main!J36 -> 18 | D30: 18 | E30: 66.33 | G30: =IFERROR(SMALL(IF(OFFSET($C$14,0,0,35)=0, "", OFFSET($C$14,0,0,35)),ROW()-ROW($G$13)),"") -> 37
B31: =Main!A18 -> 8 | C31: =Main!J18 -> 13 | D31: 13 | E31: 56.12 | G31: =IFERROR(SMALL(IF(OFFSET($C$14,0,0,35)=0, "", OFFSET($C$14,0,0,35)),ROW()-ROW($G$13)),"") -> 38
B32: =Main!A31 -> 21 | C32: =Main!J31 -> 0 | D32: 0 | E32: 0 | G32: =IFERROR(SMALL(IF(OFFSET($C$14,0,0,35)=0, "", OFFSET($C$14,0,0,35)),ROW()-ROW($G$13)),"") -> 38
B33: =Main!A33 -> 23 | C33: =Main!J33 -> 31 | D33: 31 | E33: 92.86 | G33: =IFERROR(SMALL(IF(OFFSET($C$14,0,0,35)=0, "", OFFSET($C$14,0,0,35)),ROW()-ROW($G$13)),"") -> 42
B34: =Main!A23 -> 13 | C34: =Main!J23 -> 28 | D34: 28 | E34: 86.73 | G34: =IFERROR(SMALL(IF(OFFSET($C$14,0,0,35)=0, "", OFFSET($C$14,0,0,35)),ROW()-ROW($G$13)),"") -> 47
B35: =Main!A24 -> 14 | C35: =Main!J24 -> 47 | D35: 47 | E35: 125.51 | G35: =IFERROR(SMALL(IF(OFFSET($C$14,0,0,35)=0, "", OFFSET($C$14,0,0,35)),ROW()-ROW($G$13)),"") -> 49
B36: =Main!A15 -> 5 | C36: =Main!J15 -> 30 | D36: 30 | E36: 90.82 | G36: =IFERROR(SMALL(IF(OFFSET($C$14,0,0,35)=0, "", OFFSET($C$14,0,0,35)),ROW()-ROW($G$13)),"") -> 50
B37: =Main!A37 -> 27 | C37: =Main!J37 -> 35 | D37: 35 | E37: 101.02 | G37: =IFERROR(SMALL(IF(OFFSET($C$14,0,0,35)=0, "", OFFSET($C$14,0,0,35)),ROW()-ROW($G$13)),"") -> 56
B38: =Main!A11 -> 1 | C38: =Main!J11 -> 50 | D38: 50 | E38: 131.63 | G38: =IFERROR(SMALL(IF(OFFSET($C$14,0,0,35)=0, "", OFFSET($C$14,0,0,35)),ROW()-ROW($G$13)),"") -> 57
B39: =Main!A14 -> 4 | C39: =Main!J14 -> 56 | D39: 56 | E39: 143.88 | G39: =IFERROR(SMALL(IF(OFFSET($C$14,0,0,35)=0, "", OFFSET($C$14,0,0,35)),ROW()-ROW($G$13)),"") -> 58
B40: =Main!A28 -> 18 | C40: =Main!J28 -> 38 | D40: 38 | E40: 107.14 | G40: =IFERROR(SMALL(IF(OFFSET($C$14,0,0,35)=0, "", OFFSET($C$14,0,0,35)),ROW()-ROW($G$13)),"") -> 59
B41: =Main!A43 -> 0 | C41: =Main!J43 -> 0 | D41: 0 | E41: 0 | G41: =IFERROR(SMALL(IF(OFFSET($C$14,0,0,35)=0, "", OFFSET($C$14,0,0,35)),ROW()-ROW($G$13)),"") -> 
B42: =Main!A34 -> 24 | C42: =Main!J34 -> 57 | D42: 57 | E42: 145.92 | G42: =IFERROR(SMALL(IF(OFFSET($C$14,0,0,35)=0, "", OFFSET($C$14,0,0,35)),ROW()-ROW($G$13)),"") -> 
B43: =Main!A35 -> 25 | C43: =Main!J35 -> 13 | D43: 13 | E43: 56.12 | G43: =IFERROR(SMALL(IF(OFFSET($C$14,0,0,35)=0, "", OFFSET($C$14,0,0,35)),ROW()-ROW($G$13)),"") -> 
B44: =Main!A29 -> 19 | C44: =Main!J29 -> 49 | D44: 49 | E44: 129.59 | G44: =IFERROR(SMALL(IF(OFFSET($C$14,0,0,35)=0, "", OFFSET($C$14,0,0,35)),ROW()-ROW($G$13)),"") -> 
B45: =Main!A45 -> 0 | C45: =Main!J45 -> 0 | D45: 0 | E45: 0 | G45: =IFERROR(SMALL(IF(OFFSET($C$14,0,0,35)=0, "", OFFSET($C$14,0,0,35)),ROW()-ROW($G$13)),"") -> 
B46: =Main!A32 -> 22 | C46: =Main!J32 -> 16 | D46: 16 | E46: 62.24 | G46: =IFERROR(SMALL(IF(OFFSET($C$14,0,0,35)=0, "", OFFSET($C$14,0,0,35)),ROW()-ROW($G$13)),"") -> 
B47: =Main!A39 -> 29 | C47: =Main!J39 -> 20 | D47: 20 | E47: 70.41 | G47: =IFERROR(SMALL(IF(OFFSET($C$14,0,0,35)=0, "", OFFSET($C$14,0,0,35)),ROW()-ROW($G$13)),"") -> 
B48: =Main!A19 -> 9 | C48: =Main!J19 -> 22 | D48: 22 | E48: 74.49 | G48: =IFERROR(SMALL(IF(OFFSET($C$14,0,0,35)=0, "", OFFSET($C$14,0,0,35)),ROW()-ROW($G$13)),"") -> 
